Workbook

Sheet TR144
A1: Indication of FFR results for Tender Round 144, accepted tenders will be officially notified via an issued acceptance letter.
A2: Tender Ref | D2: Company Name | E2: Tendered Unit (BMU/Unit ID) | F2: TO connection / DNO connection | G2: Generation Type | H2: Start Date | I2: End Date | J2: Tendered Period (dd.mm.yy - dd.mm.yy) | K2: Applicable FFR Capability Data Table | L2: Tendered Frames per Service Day | U2: Tendered Prices*** | X2: BMUs Only - Applicable Balancing Service (i.e. ABSVD Imbalance) YES/NO | Y2: Dynamic Providers Only | AC2: Dynamic Providers only | AJ2: Please indicate as per detail change provision if you are adding volume | AK2: Please state the accepted tender that you are stacking onto | AL2: Please state if this is an all or nothing bid. Clearly reference what lines are included in each all or nothing bid | AM2: Please indicate if this is a mutually exclusive tender | AN2: Non-Dynamic Providers | AP2: Post Code | AQ2: Comments
B3: Status | C3: Rejection Codes | L3: Working Days (Mon-Fri) | O3: Saturdays | R3: Sundays/Bank Holidays | U3: Availability Fee (£/h) | V3: Nomination Fee (£/h) | W3: Window Initiation Fee (£/window) | Y3: Maximum Part Load Point (MW) | Z3: Minimum Part Load Point (MW) | AA3: Minimum MEL (MW) | AB3: Maximum SEL (MW) | AN3: Volume of Response Tendered
L4: L | M4: To | N4: Duration (h) | O4: From | P4: To | Q4: Duration (h) | R4: From | S4: To | T4: Duration (h) | AC4: Primary Response (max.) @ 0.2Hz (MW) | AD4: Primary Response (max.) @ 0.5Hz (MW) | AE4: Primary Response (max.) @ 0.8Hz (MW) | AF4: Secondary Response (max.) @ 0.2/0.2Hz (MW) | AG4: Secondary Response (max.) @ 0.5/0.5Hz (MW) | AH4: High Frequency Response (max.) @ 0.2Hz (MW) | AI4: High Frequency Response (max.) @ 0.5Hz (MW) | AN4: Automatic Response Energy Deliverable by 10s (MW) | AO4: Automatic Response Energy Deliverable by 30s (MW)
A5: 144 | D5: Example Company | E5: Ex-FFR-1 | F5: TO connection | G5: Wind | H5: =#REF! ->  | I5: =#REF! ->  | J5: =IFERROR(TEXT(H5,"DD.MM.YY")&" - "&TEXT(I5,"DD.MM.YY")&" ("&DATEDIF(H5,I5+1,"m")&" months)","Tender End Date is Before Start Date") -> Tender End Date is Before Start Date | K5: As per FFR framework agreement | L5: 2300 | M5: 700 | N5: =IF(L5>M5, (2400-L5+M5)/100, IF(AND(L5="",M5="",L5=M5), "", IF(L5=M5,24,(M5-L5)/100))) -> 8 | O5: 2300 | P5: 700 | Q5: =IF(O5>P5, (2400-O5+P5)/100, IF(AND(O5="",P5="",O5=P5), "", IF(O5=P5,24,(P5-O5)/100))) -> 8 | R5: 2300 | S5: 700 | T5: =IF(R5>S5, (2400-R5+S5)/100, IF(AND(R5="",S5="",R5=S5), "", IF(R5=S5,24,(S5-R5)/100))) -> 8 | U5: 100 | V5: 600 | W5: - | X5: - | Y5: - | Z5: - | AA5: - | AB5: - | AC5: - | AD5: - | AE5: - | AF5: - | AG5: - | AH5: - | AI5: - | AJ5: - | AK5: - | AN5: - | AO5: - | AP5: - | AQ5: -
A6: =A5 -> 144 | D6: Example Company | E6: =E5 -> Ex-FFR-1 | F6: DNO connection | G6: Gas | H6: =H5 ->  | I6: =I5 ->  | J6: =IFERROR(TEXT(H6,"DD.MM.YY")&" - "&TEXT(I6,"DD.MM.YY")&" ("&DATEDIF(H6,I6+1,"m")&" months)","Tender End Date is Before Start Date") -> Tender End Date is Before Start Date | K6: As per FFR framework agreement | L6: 700 | M6: 2300 | N6: =IF(L6>M6, (2400-L6+M6)/100, IF(AND(L6="",M6="",L6=M6), "", IF(L6=M6,24,(M6-L6)/100))) -> 16 | O6: 700 | P6: 2300 | Q6: =IF(O6>P6, (2400-O6+P6)/100, IF(AND(O6="",P6="",O6=P6), "", IF(O6=P6,24,(P6-O6)/100))) -> 16 | R6: 700 | S6: 2300 | T6: =IF(R6>S6, (2400-R6+S6)/100, IF(AND(R6="",S6="",R6=S6), "", IF(R6=S6,24,(S6-R6)/100))) -> 16 | U6: 600 | V6: 100 | W6: - | X6: - | Y6: - | Z6: - | AA6: - | AB6: - | AC6: - | AD6: - | AE6: - | AF6: - | AG6: - | AH6: - | AI6: - | AJ6: - | AK6: - | AN6: - | AO6: - | AP6: - | AQ6: -
A7: =A5+0.001 -> 144.001 | B7: Accepted | C7: NA | D7: GRIDRESERVE LIMITED | E7: ARNKB-3 | F7: DNO connection | G7: Battery | H7: 2021-12-31 | I7: 2022-01-31 | J7: 31.12.21 - 31.01.22 (1 months) | K7: As per FFR framework agreement | L7: 2300 | M7: 700 | N7: =IF(L7>M7, (2400-L7+M7)/100, IF(AND(L7="",M7="",L7=M7), "", IF(L7=M7,24,(M7-L7)/100))) -> 8 | O7: 2300 | P7: 700 | Q7: =IF(O7>P7, (2400-O7+P7)/100, IF(AND(O7="",P7="",O7=P7), "", IF(O7=P7,24,(P7-O7)/100))) -> 8 | R7: 2300 | S7: 700 | T7: =IF(R7>S7, (2400-R7+S7)/100, IF(AND(R7="",S7="",R7=S7), "", IF(R7=S7,24,(S7-R7)/100))) -> 8 | U7: 292.9 | AC7: 11.6 | AD7: 29 | AE7: 29 | AF7: 11.6 | AG7: 29 | AH7: 11.6 | AI7: 29 | AP7: EH48
A8: =A7+0.001 -> 144.002 | B8: Accepted | C8: NA | D8: GRIDRESERVE LIMITED | E8: ARNKB-3 | F8: DNO connection | G8: Battery | H8: 2022-01-01 | I8: 2022-01-31 | J8: 01.01.22 - 31.01.22 (1 months) | K8: As per FFR framework agreement | L8: 700 | M8: 1500 | N8: 8 | O8: 700 | P8: 1500 | Q8: 8 | R8: 700 | S8: 1500 | T8: 8 | U8: 263.61 | AC8: 11.6 | AD8: 29 | AE8: 29 | AF8: 11.6 | AG8: 29 | AH8: 11.6 | AI8: 29 | AP8: EH48
A9: 144.003 | B9: Accepted | C9: NA | D9: GRIDRESERVE LIMITED | E9: ARNKB-3 | F9: DNO connection | G9: Battery | H9: 2022-01-01 | I9: 2022-01-31 | J9: 01.01.22 - 31.01.22 (1 months) | K9: As per FFR framework agreement | L9: 1500 | M9: 2300 | N9: 8 | O9: 1500 | P9: 2300 | Q9: 8 | R9: 1500 | S9: 2300 | T9: 8 | U9: 794.88 | AC9: 10.8 | AD9: 27 | AE9: 27 | AF9: 10.8 | AG9: 27 | AH9: 10.8 | AI9: 27 | AP9: EH48
A10: 144.004 | B10: Rejected | C10: 2 | D10: BLOXWICH ENERGY STORAGE LIMITED | E10: ARNKB-1 | F10: DNO connection | G10: Battery | H10: 2021-12-31 | I10: 2022-01-31 | J10: 31.12.21 - 31.01.22 (1 months) | K10: As per FFR framework agreement | L10: 2300 | M10: 700 | N10: 8 | O10: 2300 | P10: 700 | Q10: 8 | R10: 2300 | S10: 700 | T10: 8 | U10: 415.72 | X10: YES | AC10: 15.2 | AD10: 38 | AE10: 38 | AF10: 15.2 | AG10: 38 | AH10: 15.2 | AI10: 38 | AL10: A | AP10: WS2
A11: 144.005 | B11: Rejected | C11: 2 | D11: BLOXWICH ENERGY STORAGE LIMITED | E11: ARNKB-1 | F11: DNO connection | G11: Battery | H11: 2022-01-01 | I11: 2022-01-31 | J11: 01.01.22 - 31.01.22 (1 months) | K11: As per FFR framework agreement | L11: 700 | M11: 1500 | N11: 8 | O11: 700 | P11: 1500 | Q11: 8 | R11: 700 | S11: 1500 | T11: 8 | U11: 366.32 | X11: YES | AC11: 15.2 | AD11: 38 | AE11: 38 | AF11: 15.2 | AG11: 38 | AH11: 15.2 | AI11: 38 | AL11: A | AP11: WS2
A12: 144.006 | B12: Rejected | C12: 2 | D12: BLOXWICH ENERGY STORAGE LIMITED | E12: ARNKB-1 | F12: DNO connection | G12: Battery | H12: 2022-01-01 | I12: 2022-01-31 | J12: 01.01.22 - 31.01.22 (1 months) | K12: As per FFR framework agreement | L12: 1500 | M12: 2300 | N12: 8 | O12: 1500 | P12: 2300 | Q12: 8 | R12: 1500 | S12: 2300 | T12: 8 | U12: 1677.58 | X12: YES | AC12: 14.8 | AD12: 37 | AE12: 37 | AF12: 14.8 | AG12: 37 | AH12: 14.8 | AI12: 37 | AL12: A | AP12: WS2
A13: 144.007 | B13: Accepted | C13: NA | D13: OSSPV001 LIMITED | E13: E_ARNKB-2 | F13: DNO connection | G13: Battery | H13: 2021-12-31 | I13: 2022-01-31 | J13: 31.12.21 - 31.01.22 (1 months) | K13: As per FFR framework agreement | L13: 2300 | M13: 700 | N13: 8 | O13: 2300 | P13: 700 | Q13: 8 | R13: 2300 | S13: 700 | T13: 8 | U13: 100.62 | X13: YES | AC13: 3.6 | AD13: 9 | AE13: 9 | AF13: 3.6 | AG13: 9 | AH13: 3.6 | AI13: 9 | AL13: B | AP13: CM13
A14: 144.008 | B14: Accepted | C14: NA | D14: OSSPV001 LIMITED | E14: E_ARNKB-2 | F14: DNO connection | G14: Battery | H14: 2022-01-01 | I14: 2022-01-31 | J14: 01.01.22 - 31.01.22 (1 months) | K14: As per FFR framework agreement | L14: 700 | M14: 1500 | N14: 8 | O14: 700 | P14: 1500 | Q14: 8 | R14: 700 | S14: 1500 | T14: 8 | U14: 83.97 | X14: YES | AC14: 3.6 | AD14: 9 | AE14: 9 | AF14: 3.6 | AG14: 9 | AH14: 3.6 | AI14: 9 | AL14: B | AP14: CM13
A15: 144.009 | B15: Accepted | C15: NA | D15: OSSPV001 LIMITED | E15: E_ARNKB-2 | F15: DNO connection | G15: Battery | H15: 2022-01-01 | I15: 2022-01-31 | J15: 01.01.22 - 31.01.22 (1 months) | K15: As per FFR framework agreement | L15: 1500 | M15: 2300 | N15: 8 | O15: 1500 | P15: 2300 | Q15: 8 | R15: 1500 | S15: 2300 | T15: 8 | U15: 357.57 | X15: YES | AC15: 3.6 | AD15: 9 | AE15: 9 | AF15: 3.6 | AG15: 9 | AH15: 3.6 | AI15: 9 | AL15: B | AP15: CM13
A16: 144.01 | B16: Rejected | C16: 4 | D16: REstore Flexpond UK Ltd | E16: REST-1 | F16: DNO connection | G16: Multiple Fuel Type | H16: 2021-12-31 | I16: 2022-01-31 | J16: 31.12.21 - 31.01.22 (1 months) | K16: As per FFR framework agreement | L16: 2300 | M16: 1500 | N16: 16 | O16: 2300 | P16: 1500 | Q16: 16 | R16: 2300 | S16: 1500 | T16: 16 | U16: 170.1 | AC16: 7.2 | AD16: 18 | AE16: 18 | AF16: 7.2 | AG16: 18 | AH16: 7.2 | AI16: 18 | AL16: A | AM16: Mutually Exclusive to C | AP16: Various
A17: 144.011 | B17: Rejected | C17: 4 | D17: REstore Flexpond UK Ltd | E17: REST-1 | F17: DNO connection | G17: Multiple Fuel Type | H17: 2022-01-01 | I17: 2022-01-31 | J17: 01.01.22 - 31.01.22 (1 months) | K17: As per FFR framework agreement | L17: 1500 | M17: 2300 | N17: 8 | O17: 1500 | P17: 2300 | Q17: 8 | R17: 1500 | S17: 2300 | T17: 8 | U17: 499.5 | AC17: 7.2 | AD17: 18 | AE17: 18 | AF17: 7.2 | AG17: 18 | AH17: 7.2 | AI17: 18 | AL17: B | AM17: Mutually Exclusive to C | AP17: Various
A18: 144.012 | B18: Accepted | C18: NA | D18: REstore Flexpond UK Ltd | E18: REST-1 | F18: DNO connection | G18: Multiple Fuel Type | H18: 2021-12-31 | I18: 2022-01-31 | J18: 31.12.21 - 31.01.22 (1 months) | K18: As per FFR framework agreement | L18: 2300 | M18: 2300 | N18: 24 | O18: 2300 | P18: 2300 | Q18: 24 | R18: 2300 | S18: 2300 | T18: 24 | U18: 269.1 | AC18: 7.2 | AD18: 18 | AE18: 18 | AF18: 7.2 | AG18: 18 | AH18: 7.2 | AI18: 18 | AL18: C | AM18: Mutually Exclusive to A + B | AP18: Various
A19: 144.013 | B19: Rejected | C19: 4 | D19: Centrica Brigg Ltd | E19: ROOSB-1 | F19: DNO connection | G19: Battery | H19: 2021-12-31 | I19: 2022-01-31 | J19: 31.12.21 - 31.01.22 (1 months) | K19: As per FFR framework agreement | L19: 2300 | M19: 1500 | N19: 16 | O19: 2300 | P19: 1500 | Q19: 16 | R19: 2300 | S19: 1500 | T19: 16 | U19: 368.5 | X19: Yes | AC19: 8.8 | AD19: 22 | AE19: 22 | AF19: 8.8 | AG19: 22 | AH19: 8.8 | AI19: 22 | AL19: A | AM19: Mutually Exclusive to C | AP19: LA13
A20: 144.014 | B20: Rejected | C20: 4 | D20: Centrica Brigg Ltd | E20: ROOSB-1 | F20: DNO connection | G20: Battery | H20: 2022-01-01 | I20: 2022-01-31 | J20: 01.01.22 - 31.01.22 (1 months) | K20: As per FFR framework agreement | L20: 1500 | M20: 2300 | N20: 8 | O20: 1500 | P20: 2300 | Q20: 8 | R20: 1500 | S20: 2300 | T20: 8 | U20: 699.16 | X20: Yes | AC20: 8.8 | AD20: 22 | AE20: 22 | AF20: 8.8 | AG20: 22 | AH20: 8.8 | AI20: 22 | AL20: B | AM20: Mutually Exclusive to C | AP20: LA13
A21: 144.015 | B21: Accepted | C21: NA | D21: Centrica Brigg Ltd | E21: ROOSB-1 | F21: DNO connection | G21: Battery | H21: 2021-12-31 | I21: 2022-01-31 | J21: 31.12.21 - 31.01.22 (1 months) | K21: As per FFR framework agreement | L21: 2300 | M21: 2300 | N21: 24 | O21: 2300 | P21: 2300 | Q21: 24 | R21: 2300 | S21: 2300 | T21: 24 | U21: 347.38 | X21: Yes | AC21: 8.8 | AD21: 22 | AE21: 22 | AF21: 8.8 | AG21: 22 | AH21: 8.8 | AI21: 22 | AL21: C | AM21: Mutually Exclusive to A + B | AP21: LA13
A22: 144.016 | B22: Accepted | C22: NA | D22: City Energy Management Services Ltd. | E22: CMFH-1 | F22: DNO connection | G22: DSF: Load response | H22: 2021-12-31 | I22: 2022-01-31 | J22: 31.12.21 - 31.01.22 (1 months) | K22: As per FFR framework agreement | L22: 2300 | M22: 1100 | N22: 12 | O22: 2300 | P22: 1100 | Q22: 12 | R22: 2300 | S22: 1100 | T22: 12 | U22: 3.49 | AO22: 1
A23: 144.017 | B23: Accepted | C23: NA | D23: City Energy Management Services Ltd. | E23: CMFH-1 | F23: DNO connection | G23: DSF: Load response | H23: 2022-01-01 | I23: 2022-01-31 | J23: 01.01.22 - 31.01.22 (1 months) | K23: As per FFR framework agreement | L23: 1100 | M23: 1500 | N23: 4 | O23: 1100 | P23: 1500 | Q23: 4 | R23: 1100 | S23: 1500 | T23: 4 | U23: 6.97 | AO23: 2
A24: 144.018 | B24: Accepted | C24: NA | D24: City Energy Management Services Ltd. | E24: CMFH-1 | F24: DNO connection | G24: DSF: Load response | H24: 2022-01-01 | I24: 2022-01-31 | J24: 01.01.22 - 31.01.22 (1 months) | K24: As per FFR framework agreement | L24: 1900 | M24: 2300 | N24: 4 | O24: 1900 | P24: 2300 | Q24: 4 | R24: 1900 | S24: 2300 | T24: 4 | U24: 6.97 | AO24: 2
A25: 144.019 | B25: Accepted | C25: NA | D25: First Renewable Alpha Limited | E25: TREGN-1 | F25: DNO connection | G25: Diesel | H25: 2021-12-31 | I25: 2022-01-31 | J25: 31.12.21 - 31.01.22 (1 months) | K25: As per FFR framework agreement | L25: 2300 | M25: 700 | N25: 8 | O25: 2300 | P25: 700 | Q25: 8 | R25: 2300 | S25: 700 | T25: 8 | U25: 65 | AO25: 20 | AP25: PL32
A26: 144.02 | B26: Accepted | C26: NA | D26: First Renewable Alpha Limited | E26: TREGN-1 | F26: DNO connection | G26: Diesel | H26: 2022-01-01 | I26: 2022-01-31 | J26: 01.01.22 - 31.01.22 (1 months) | K26: As per FFR framework agreement | L26: 700 | M26: 1500 | N26: 8 | O26: 700 | P26: 1500 | Q26: 8 | R26: 700 | S26: 1500 | T26: 8 | U26: 70 | AO26: 20 | AP26: PL32
A27: 144.021 | B27: Accepted | C27: NA | D27: First Renewable Alpha Limited | E27: TREGN-1 | F27: DNO connection | G27: Diesel | H27: 2022-01-01 | I27: 2022-01-31 | J27: 01.01.22 - 31.01.22 (1 months) | K27: As per FFR framework agreement | L27: 1500 | M27: 2300 | N27: =IF(L27>M27, (2400-L27+M27)/100, IF(AND(L27="",M27="",L27=M27), "", IF(L27=M27,24,(M27-L27)/100))) -> 8 | O27: 1500 | P27: 2300 | Q27: 8 | R27: 1500 | S27: 2300 | T27: 8 | U27: 70 | AO27: 20 | AP27: PL32
A28: 144.022 | B28: Accepted | C28: NA | D28: Flexitricity Limited | E28: AG-FLX00L | F28: DNO connection | G28: DSF: Storage (for export) | H28: 2021-12-31 | I28: 2022-01-31 | J28: 31.12.21 - 31.01.22 (1 months) | K28: As per FFR framework agreement | L28: 2300 | M28: 700 | N28: =IF(L28>M28, (2400-L28+M28)/100, IF(AND(L28="",M28="",L28=M28), "", IF(L28=M28,24,(M28-L28)/100))) -> 8 | O28: 2300 | P28: 700 | Q28: 8 | R28: 2300 | S28: 700 | T28: 8 | U28: 55.08 | V28: 0 | X28: YES | AC28: 1.6 | AD28: 4 | AE28: 4 | AF28: 1.6 | AG28: 4 | AH28: 1.6 | AI28: 4 | AP28: EX34 /EX31
A29: 144.023 | B29: Accepted | C29: NA | D29: Flexitricity Limited | E29: AG-FLX00L | F29: DNO connection | G29: DSF: Storage (for export) | H29: 2022-01-01 | I29: 2022-01-31 | J29: 01.01.22 - 31.01.22 (1 months) | K29: As per FFR framework agreement | L29: 700 | M29: 1500 | N29: 8 | O29: 700 | P29: 1500 | Q29: 8 | R29: 700 | S29: 1500 | T29: 8 | U29: 45.2 | V29: 0 | X29: YES | AC29: 1.6 | AD29: 4 | AE29: 4 | AF29: 1.6 | AG29: 4 | AH29: 1.6 | AI29: 4 | AP29: EX34 /EX31
A30: 144.024 | B30: Rejected | C30: 2 | D30: Flexitricity Limited | E30: AG-FLX00L | F30: DNO connection | G30: DSF: Storage (for export) | H30: 2022-01-01 | I30: 2022-01-31 | J30: 01.01.22 - 31.01.22 (1 months) | K30: As per FFR framework agreement | L30: 1500 | M30: 2300 | N30: 8 | O30: 1500 | P30: 2300 | Q30: 8 | R30: 1500 | S30: 2300 | T30: 8 | U30: 208.44 | V30: 0 | X30: YES | AC30: 1.6 | AD30: 4 | AE30: 4 | AF30: 1.6 | AG30: 4 | AH30: 1.6 | AI30: 4 | AP30: EX34 /EX31
A31: 144.025 | B31: Rejected | C31: 2 | D31: Flexitricity Limited | E31: AG-BFLX02 | F31: DNO connection | G31: DSF: Storage (for export) | H31: 2021-12-31 | I31: 2022-01-31 | J31: 31.12.21 - 31.01.22 (1 months) | K31: As per FFR framework agreement | L31: 2300 | M31: 700 | N31: 8 | O31: 2300 | P31: 700 | Q31: 8 | R31: 2300 | S31: 700 | T31: 8 | U31: 154.8 | V31: 0 | X31: YES | AC31: 4 | AD31: 10 | AE31: 10 | AF31: 4 | AG31: 10 | AH31: 4 | AI31: 10 | AP31: DE12
A32: 144.026 | B32: Accepted | C32: NA | D32: Flexitricity Limited | E32: AG-BFLX02 | F32: DNO connection | G32: DSF: Storage (for export) | H32: 2022-01-01 | I32: 2022-01-31 | J32: =IFERROR(TEXT(H32,"DD.MM.YY")&" - "&TEXT(I32,"DD.MM.YY")&" ("&DATEDIF(H32,I32+1,"m")&" months)","Tender End Date is Before Start Date") -> 01.01.22 - 31.01.22 (1 months) | K32: As per FFR framework agreement | L32: 700 | M32: 1500 | N32: 8 | O32: 700 | P32: 1500 | Q32: 8 | R32: 700 | S32: 1500 | T32: 8 | U32: 112.7 | V32: 0 | X32: YES | AC32: 4 | AD32: 10 | AE32: 10 | AF32: 4 | AG32: 10 | AH32: 4 | AI32: 10 | AP32: DE12
A33: 144.027 | B33: Accepted | C33: NA | D33: Flexitricity Limited | E33: AG-BFLX02 | F33: DNO connection | G33: DSF: Storage (for export) | H33: 2022-01-01 | I33: 2022-01-31 | J33: =IFERROR(TEXT(H33,"DD.MM.YY")&" - "&TEXT(I33,"DD.MM.YY")&" ("&DATEDIF(H33,I33+1,"m")&" months)","Tender End Date is Before Start Date") -> 01.01.22 - 31.01.22 (1 months) | K33: As per FFR framework agreement | L33: 1500 | M33: 2300 | N33: 8 | O33: 1500 | P33: 2300 | Q33: 8 | R33: 1500 | S33: 2300 | T33: 8 | U33: 432.8 | V33: 0 | X33: YES | AC33: 4 | AD33: 10 | AE33: 10 | AF33: 4 | AG33: 10 | AH33: 4 | AI33: 10 | AP33: DE12
A34: 144.028 | B34: Rejected | C34: 2 | D34: Flexitricity Limited | E34: AG-EFLX01 | F34: DNO connection | G34: DSF: Storage (for export) | H34: 2021-12-31 | I34: 2022-01-31 | J34: 31.12.21 - 31.01.22 (1 months) | K34: As per FFR framework agreement | L34: 2300 | M34: 700 | N34: 8 | O34: 2300 | P34: 700 | Q34: 8 | R34: 2300 | S34: 700 | T34: 8 | U34: 292.79 | V34: 0 | X34: YES | AC34: 7.6 | AD34: 19 | AE34: 19 | AF34: 7.6 | AG34: 19 | AH34: 7.6 | AI34: 19 | AP34: HR1 4
A35: 144.029 | B35: Rejected | C35: 2 | D35: Flexitricity Limited | E35: AG-EFLX01 | F35: DNO connection | G35: DSF: Storage (for export) | H35: 2022-01-01 | I35: 2022-01-31 | J35: 01.01.22 - 31.01.22 (1 months) | K35: As per FFR framework agreement | L35: 700 | M35: 1500 | N35: 8 | O35: 700 | P35: 1500 | Q35: 8 | R35: 700 | S35: 1500 | T35: 8 | U35: 213.94 | V35: 0 | X35: YES | AC35: 7.6 | AD35: 19 | AE35: 19 | AF35: 7.6 | AG35: 19 | AH35: 7.6 | AI35: 19 | AP35: HR1 4
A36: 144.03 | B36: Accepted | C36: NA | D36: Flexitricity Limited | E36: AG-EFLX01 | F36: DNO connection | G36: DSF: Storage (for export) | H36: 2022-01-01 | I36: 2022-01-31 | J36: 01.01.22 - 31.01.22 (1 months) | K36: As per FFR framework agreement | L36: 1500 | M36: 2300 | N36: 8 | O36: 1500 | P36: 2300 | Q36: 8 | R36: 1500 | S36: 2300 | T36: 8 | U36: 861.84 | V36: 0 | X36: YES | AC36: 7.6 | AD36: 19 | AE36: 19 | AF36: 7.6 | AG36: 19 | AH36: 7.6 | AI36: 19 | AP36: HR1 4
A37: 144.031 | B37: Rejected | C37: 2 | D37: Flexitricity Limited | E37: AG-BFLX01 | F37: DNO connection | G37: DSF: Storage (for export) | H37: 2021-12-31 | I37: 2022-01-31 | J37: 31.12.21 - 31.01.22 (1 months) | K37: As per FFR framework agreement | L37: 2300 | M37: 700 | N37: 8 | O37: 2300 | P37: 700 | Q37: 8 | R37: 2300 | S37: 700 | T37: 8 | U37: 105 | V37: 0 | X37: YES | AC37: 2.8 | AD37: 7 | AE37: 7 | AF37: 2.8 | AG37: 7 | AH37: 2.8 | AI37: 7 | AP37: NG32
A38: 144.032 | B38: Rejected | C38: 2 | D38: Flexitricity Limited | E38: AG-BFLX01 | F38: DNO connection | G38: DSF: Storage (for export) | H38: 2022-01-01 | I38: 2022-01-31 | J38: 01.01.22 - 31.01.22 (1 months) | K38: As per FFR framework agreement | L38: 700 | M38: 1500 | N38: 8 | O38: 700 | P38: 1500 | Q38: 8 | R38: 700 | S38: 1500 | T38: 8 | U38: 79.03 | V38: 0 | X38: YES | AC38: 2.8 | AD38: 7 | AE38: 7 | AF38: 2.8 | AG38: 7 | AH38: 2.8 | AI38: 7 | AP38: NG32
A39: 144.033 | B39: Accepted | C39: NA | D39: Flexitricity Limited | E39: AG-BFLX01 | F39: DNO connection | G39: DSF: Storage (for export) | H39: 2022-01-01 | I39: 2022-01-31 | J39: 01.01.22 - 31.01.22 (1 months) | K39: As per FFR framework agreement | L39: 1500 | M39: 2300 | N39: 8 | O39: 1500 | P39: 2300 | Q39: 8 | R39: 1500 | S39: 2300 | T39: 8 | U39: 296.03 | V39: 0 | X39: YES | AC39: 2.8 | AD39: 7 | AE39: 7 | AF39: 2.8 | AG39: 7 | AH39: 2.8 | AI39: 7 | AP39: NG32
A40: 144.034 | B40: Rejected | C40: 2 | D40: Flexitricity Limited | E40: AG-NFLX01 | F40: DNO connection | G40: DSF: Storage (for export) | H40: 2021-12-31 | I40: 2022-01-31 | J40: 31.12.21 - 31.01.22 (1 months) | K40: As per FFR framework agreement | L40: 2300 | M40: 700 | N40: 8 | O40: 2300 | P40: 700 | Q40: 8 | R40: 2300 | S40: 700 | T40: 8 | U40: 121.6 | V40: 0 | X40: YES | AC40: 3.2 | AD40: 8 | AE40: 8 | AF40: 3.2 | AG40: 8 | AH40: 3.2 | AI40: 8 | AP40: KY1 3
A41: 144.035 | B41: Accepted | C41: NA | D41: Flexitricity Limited | E41: AG-NFLX01 | F41: DNO connection | G41: DSF: Storage (for export) | H41: 2022-01-01 | I41: 2022-01-31 | J41: 01.01.22 - 31.01.22 (1 months) | K41: As per FFR framework agreement | L41: 700 | M41: 1500 | N41: 8 | O41: 700 | P41: 1500 | Q41: 8 | R41: 700 | S41: 1500 | T41: 8 | U41: 90.24 | V41: 0 | X41: YES | AC41: 3.2 | AD41: 8 | AE41: 8 | AF41: 3.2 | AG41: 8 | AH41: 3.2 | AI41: 8 | AP41: KY1 3
A42: 144.036 | B42: Accepted | C42: NA | D42: Flexitricity Limited | E42: UF_FLX01 | F42: DNO connection | G42: DSF: Load response | H42: 2021-12-31 | I42: 2022-01-31 | J42: 31.12.21 - 31.01.22 (1 months) | K42: As per FFR framework agreement | L42: 2300 | M42: 700 | N42: 8 | O42: 2300 | P42: 700 | Q42: 8 | R42: 2300 | S42: 700 | T42: 8 | U42: 3.97 | V42: 0 | AO42: 1 | AP42: PO30
A43: 144.037 | B43: Rejected | C43: 2 | D43: Flexitricity Limited | E43: AG-MFLX02 | F43: DNO connection | G43: DSF: Storage (for export) | H43: 2021-12-31 | I43: 2022-01-31 | J43: 31.12.21 - 31.01.22 (1 months) | K43: As per FFR framework agreement | L43: 2300 | M43: 700 | N43: 8 | O43: 2300 | P43: 700 | Q43: 8 | R43: 2300 | S43: 700 | T43: 8 | U43: 756.07 | V43: 0 | X43: YES | AC43: 19.96 | AD43: 49 | AE43: 49 | AF43: 19.96 | AG43: 49 | AH43: 19.96 | AI43: 49 | AP43: S66 9
A44: 144.038 | B44: Accepted | C44: NA | D44: Flexitricity Limited | E44: AG-MFLX02 | F44: DNO connection | G44: DSF: Storage (for export) | H44: 2022-01-01 | I44: 2022-01-31 | J44: 01.01.22 - 31.01.22 (1 months) | K44: As per FFR framework agreement | L44: 700 | M44: 1500 | N44: 8 | O44: 700 | P44: 1500 | Q44: 8 | R44: 700 | S44: 1500 | T44: 8 | U44: 551.25 | V44: 0 | X44: YES | AC44: 19.96 | AD44: 49 | AE44: 49 | AF44: 19.96 | AG44: 49 | AH44: 19.96 | AI44: 49 | AP44: S66 9
A45: 144.039 | B45: Rejected | C45: 2 | D45: Flexitricity Limited | E45: AG-MFLX02 | F45: DNO connection | G45: DSF: Storage (for export) | H45: 2022-01-01 | I45: 2022-01-31 | J45: 01.01.22 - 31.01.22 (1 months) | K45: As per FFR framework agreement | L45: 1500 | M45: 1900 | N45: 4 | U45: 2401.49 | V45: 0 | X45: YES | AC45: 19.96 | AD45: 44 | AE45: 44 | AF45: 19.96 | AG45: 44 | AH45: 19.96 | AI45: 49 | AL45: A | AP45: S66 9
A46: 144.04 | B46: Rejected | C46: 2 | D46: Flexitricity Limited | E46: AG-MFLX02 | F46: DNO connection | G46: DSF: Storage (for export) | H46: 2022-01-01 | I46: 2022-01-31 | J46: 01.01.22 - 31.01.22 (1 months) | K46: As per FFR framework agreement | L46: 1900 | M46: 2300 | N46: 4 | O46: 1900 | P46: 2300 | Q46: 4 | R46: 1900 | S46: 2300 | T46: 4 | U46: 2401.49 | V46: 0 | X46: YES | AC46: 19.96 | AD46: 49 | AE46: 49 | AF46: 19.96 | AG46: 49 | AH46: 19.96 | AI46: 49 | AL46: A | AP46: S66 9
A47: 144.041 | B47: Rejected | C47: 2 | D47: Flexitricity Limited | E47: AG-MFLX02 | F47: DNO connection | G47: DSF: Storage (for export) | H47: 2022-01-01 | I47: 2022-01-31 | J47: 01.01.22 - 31.01.22 (1 months) | K47: As per FFR framework agreement | O47: 1500 | P47: 1900 | Q47: 4 | R47: 1500 | S47: 1900 | T47: 4 | U47: 2401.49 | V47: 0 | X47: YES | AC47: 19.96 | AD47: 49 | AE47: 49 | AF47: 19.96 | AG47: 49 | AH47: 19.96 | AI47: 49 | AL47: A | AP47: S66 9
A48: 144.042 | B48: Accepted | C48: NA | D48: GridBeyond Limited | E48: GBND-2 | F48: DNO connection | G48: DSF: Load response | H48: 2021-12-31 | I48: 2022-01-31 | J48: 31.12.21 - 31.01.22 (1 months) | K48: As per FFR framework agreement | L48: 2300 | M48: 700 | N48: 8 | U48: 296 | AC48: 11.6 | AD48: 29 | AE48: 29 | AF48: 11.6 | AG48: 29 | AH48: 6.4 | AI48: 16 | AL48: A
A49: 144.043 | B49: Accepted | C49: NA | D49: GridBeyond Limited | E49: GBND-2 | F49: DNO connection | G49: DSF: Load response | H49: 2022-01-01 | I49: 2022-01-31 | J49: 01.01.22 - 31.01.22 (1 months) | K49: As per FFR framework agreement | L49: 700 | M49: 1500 | N49: 8 | U49: 182.5 | AC49: 11.6 | AD49: 29 | AE49: 29 | AF49: 11.6 | AG49: 29 | AH49: 6 | AI49: 15 | AL49: B
A50: 144.044 | B50: Accepted | C50: NA | D50: GridBeyond Limited | E50: GBND-2 | F50: DNO connection | G50: DSF: Load response | H50: 2022-01-01 | I50: 2022-01-31 | J50: 01.01.22 - 31.01.22 (1 months) | K50: As per FFR framework agreement | L50: 1900 | M50: 2300 | N50: 4 | U50: 800.4 | AC50: 10.8 | AD50: 27 | AE50: 27 | AF50: 10.8 | AG50: 27 | AH50: 6 | AI50: 15 | AL50: C
A51: 144.045 | B51: Accepted | C51: NA | D51: GridBeyond Limited | E51: GBND-2 | F51: DNO connection | G51: DSF: Load response | H51: 2021-12-31 | I51: 2022-01-31 | J51: 31.12.21 - 31.01.22 (1 months) | K51: As per FFR framework agreement | O51: 2300 | P51: 700 | Q51: 8 | U51: 204 | AC51: 7.2 | AD51: 18 | AE51: 18 | AF51: 7.2 | AG51: 18 | AH51: 6 | AI51: 15 | AL51: A
A52: 144.046 | B52: Accepted | C52: NA | D52: GridBeyond Limited | E52: GBND-2 | F52: DNO connection | G52: DSF: Load response | H52: 2022-01-01 | I52: 2022-01-31 | J52: 01.01.22 - 31.01.22 (1 months) | K52: As per FFR framework agreement | O52: 700 | P52: 1500 | Q52: 8 | U52: 127.5 | AC52: 7.2 | AD52: 18 | AE52: 18 | AF52: 7.2 | AG52: 18 | AH52: 6 | AI52: 15 | AL52: B
A53: 144.047 | B53: Accepted | C53: NA | D53: GridBeyond Limited | E53: GBND-2 | F53: DNO connection | G53: DSF: Load response | H53: 2022-01-01 | I53: 2022-01-31 | J53: 01.01.22 - 31.01.22 (1 months) | K53: As per FFR framework agreement | O53: 1500 | P53: 2300 | Q53: 8 | U53: 545.2 | AC53: 6.4 | AD53: 16 | AE53: 16 | AF53: 6.4 | AG53: 16 | AH53: 6 | AI53: 15 | AL53: C
A54: 144.048 | B54: Accepted | C54: NA | D54: GridBeyond Limited | E54: GBND-2 | F54: DNO connection | G54: DSF: Load response | H54: 2021-12-31 | I54: 2022-01-31 | J54: 31.12.21 - 31.01.22 (1 months) | K54: As per FFR framework agreement | R54: 2300 | S54: 700 | T54: 8 | U54: 156 | AC54: 5.2 | AD54: 13 | AE54: 13 | AF54: 5.2 | AG54: 13 | AH54: 5.2 | AI54: 13 | AL54: A
A55: 144.049 | B55: Accepted | C55: NA | D55: GridBeyond Limited | E55: GBND-2 | F55: DNO connection | G55: DSF: Load response | H55: 2022-01-01 | I55: 2022-01-31 | J55: 01.01.22 - 31.01.22 (1 months) | K55: As per FFR framework agreement | R55: 700 | S55: 1500 | T55: 8 | U55: 97.5 | AC55: 5.2 | AD55: 13 | AE55: 13 | AF55: 5.2 | AG55: 13 | AH55: 5.2 | AI55: 13 | AL55: B
A56: 144.05 | B56: Accepted | C56: NA | D56: GridBeyond Limited | E56: GBND-2 | F56: DNO connection | G56: DSF: Load response | H56: 2022-01-01 | I56: 2022-01-31 | J56: 01.01.22 - 31.01.22 (1 months) | K56: As per FFR framework agreement | R56: 1500 | S56: 2300 | T56: 8 | U56: 522 | AC56: 6.4 | AD56: 16 | AE56: 16 | AF56: 6.4 | AG56: 16 | AH56: 5.2 | AI56: 13 | AL56: C
A57: 144.051 | B57: Accepted | C57: NA | D57: GridBeyond Limited | E57: ENDSR-1 | F57: DNO connection | G57: DSF: Load response | H57: 2021-12-31 | I57: 2022-01-31 | J57: 31.12.21 - 31.01.22 (1 months) | K57: As per FFR framework agreement | L57: 2300 | M57: 700 | N57: 8 | O57: 2300 | P57: 700 | Q57: 8 | R57: 2300 | S57: 700 | T57: 8 | U57: 19.5 | AO57: 5
A58: 144.052 | B58: Accepted | C58: NA | D58: GridBeyond Limited | E58: ENDSR-1 | F58: DNO connection | G58: DSF: Load response | H58: 2022-01-01 | I58: 2022-01-31 | J58: 01.01.22 - 31.01.22 (1 months) | K58: As per FFR framework agreement | L58: 700 | M58: 1500 | N58: 8 | O58: 700 | P58: 1500 | Q58: 8 | R58: 700 | S58: 1500 | T58: 8 | U58: 19.5 | AO58: 5
A59: 144.053 | B59: Accepted | C59: NA | D59: GridBeyond Limited | E59: ENDSR-1 | F59: DNO connection | G59: DSF: Load response | H59: 2022-01-01 | I59: 2022-01-31 | J59: 01.01.22 - 31.01.22 (1 months) | K59: As per FFR framework agreement | L59: 1500 | M59: 1900 | N59: 4 | U59: 11.7 | AL59: D | AO59: 3
A60: 144.054 | B60: Accepted | C60: NA | D60: GridBeyond Limited | E60: ENDSR-1 | F60: DNO connection | G60: DSF: Load response | H60: 2022-01-01 | I60: 2022-01-31 | J60: 01.01.22 - 31.01.22 (1 months) | K60: As per FFR framework agreement | L60: 1900 | M60: 2300 | N60: 4 | O60: 1500 | P60: 2300 | Q60: 8 | R60: 1500 | S60: 2300 | T60: 8 | U60: 19.5 | AL60: D | AO60: 5
A61: 144.055 | B61: Accepted | C61: NA | D61: GridBeyond Limited | E61: ENDSR-2 | F61: DNO connection | G61: DSF: Load response | H61: 2021-12-31 | I61: 2022-01-31 | J61: 31.12.21 - 31.01.22 (1 months) | K61: As per FFR framework agreement | L61: 2300 | M61: 700 | N61: 8 | O61: 2300 | P61: 700 | Q61: 8 | R61: 2300 | S61: 700 | T61: 8 | U61: 19.5 | AO61: 5
A62: 144.056 | B62: Accepted | C62: NA | D62: GridBeyond Limited | E62: ENDSR-2 | F62: DNO connection | G62: DSF: Load response | H62: 2022-01-01 | I62: 2022-01-31 | J62: 01.01.22 - 31.01.22 (1 months) | K62: As per FFR framework agreement | L62: 700 | M62: 1500 | N62: 8 | O62: 700 | P62: 1500 | Q62: 8 | R62: 700 | S62: 1500 | T62: 8 | U62: 19.5 | AO62: 5
A63: 144.057 | B63: Accepted | C63: NA | D63: GridBeyond Limited | E63: ENDSR-2 | F63: DNO connection | G63: DSF: Load response | H63: 2022-01-01 | I63: 2022-01-31 | J63: 01.01.22 - 31.01.22 (1 months) | K63: As per FFR framework agreement | L63: 1500 | M63: 1900 | N63: 4 | U63: 11.7 | AL63: E | AO63: 3
A64: 144.058 | B64: Accepted | C64: NA | D64: GridBeyond Limited | E64: ENDSR-2 | F64: DNO connection | G64: DSF: Load response | H64: 2022-01-01 | I64: 2022-01-31 | J64: 01.01.22 - 31.01.22 (1 months) | K64: As per FFR framework agreement | L64: 1900 | M64: 2300 | N64: 4 | O64: 1500 | P64: 2300 | Q64: 8 | R64: 1500 | S64: 2300 | T64: 8 | U64: 19.5 | AL64: E | AO64: 5
A65: 144.059 | B65: Accepted | C65: NA | D65: GridBeyond Limited | E65: ENDSR-4 | F65: DNO connection | G65: DSF: Load response | H65: 2021-12-31 | I65: 2022-01-31 | J65: 31.12.21 - 31.01.22 (1 months) | K65: As per FFR framework agreement | L65: 2300 | M65: 700 | N65: 8 | O65: 2300 | P65: 700 | Q65: 8 | R65: 2300 | S65: 700 | T65: 8 | U65: 23.4 | AO65: 6
A66: 144.06 | B66: Accepted | C66: NA | D66: GridBeyond Limited | E66: ENDSR-4 | F66: DNO connection | G66: DSF: Load response | H66: 2022-01-01 | I66: 2022-01-31 | J66: 01.01.22 - 31.01.22 (1 months) | K66: As per FFR framework agreement | L66: 700 | M66: 1500 | N66: 8 | O66: 700 | P66: 1500 | Q66: 8 | R66: 700 | S66: 1500 | T66: 8 | U66: 23.4 | AO66: 6
A67: 144.061 | B67: Accepted | C67: NA | D67: GridBeyond Limited | E67: ENDSR-4 | F67: DNO connection | G67: DSF: Load response | H67: 2022-01-01 | I67: 2022-01-31 | J67: =IFERROR(TEXT(H67,"DD.MM.YY")&" - "&TEXT(I67,"DD.MM.YY")&" ("&DATEDIF(H67,I67+1,"m")&" months)","Tender End Date is Before Start Date") -> 01.01.22 - 31.01.22 (1 months) | K67: As per FFR framework agreement | L67: 1500 | M67: 2300 | N67: 8 | O67: 1500 | P67: 2300 | Q67: 8 | R67: 1500 | S67: 2300 | T67: 8 | U67: 23.4 | AO67: 6
A68: 144.062 | B68: Accepted | C68: NA | D68: GridBeyond Limited | E68: ENDSR-3 | F68: DNO connection | G68: DSF: Load response | H68: 2021-12-31 | I68: 2022-01-31 | J68: 31.12.21 - 31.01.22 (1 months) | K68: As per FFR framework agreement | L68: 2300 | M68: 700 | N68: 8 | O68: 2300 | P68: 700 | Q68: 8 | R68: 2300 | S68: 700 | T68: 8 | U68: 19.5 | AO68: 5
A69: 144.063 | B69: Accepted | C69: NA | D69: GridBeyond Limited | E69: ENDSR-3 | F69: DNO connection | G69: DSF: Load response | H69: 2022-01-01 | I69: 2022-01-31 | J69: 01.01.22 - 31.01.22 (1 months) | K69: As per FFR framework agreement | L69: 700 | M69: 1500 | N69: 8 | O69: 700 | P69: 1500 | Q69: 8 | R69: 700 | S69: 1500 | T69: 8 | U69: 23.4 | AO69: 6
A70: 144.064 | B70: Accepted | C70: NA | D70: GridBeyond Limited | E70: ENDSR-3 | F70: DNO connection | G70: DSF: Load response | H70: 2022-01-01 | I70: 2022-01-31 | J70: =IFERROR(TEXT(H70,"DD.MM.YY")&" - "&TEXT(I70,"DD.MM.YY")&" ("&DATEDIF(H70,I70+1,"m")&" months)","Tender End Date is Before Start Date") -> 01.01.22 - 31.01.22 (1 months) | K70: As per FFR framework agreement | L70: 1500 | M70: 1900 | N70: 4 | U70: 11.7 | AL70: F | AO70: 3
A71: 144.065 | B71: Accepted | C71: NA | D71: GridBeyond Limited | E71: ENDSR-3 | F71: DNO connection | G71: DSF: Load response | H71: 2022-01-01 | I71: 2022-01-31 | J71: 01.01.22 - 31.01.22 (1 months) | K71: As per FFR framework agreement | L71: 1900 | M71: 2300 | N71: 4 | O71: 1500 | P71: 2300 | Q71: =IF(O71>P71, (2400-O71+P71)/100, IF(AND(O71="",P71="",O71=P71), "", IF(O71=P71,24,(P71-O71)/100))) -> 8 | R71: 1500 | S71: 2300 | T71: =IF(R71>S71, (2400-R71+S71)/100, IF(AND(R71="",S71="",R71=S71), "", IF(R71=S71,24,(S71-R71)/100))) -> 8 | U71: 19.5 | AL71: F | AO71: 5
A72: =A71+0.001 -> 144.066 | B72: Accepted | C72: NA | D72: GridBeyond Limited | E72: ENDSR-6 | F72: DNO connection | G72: DSF: Load response | H72: 2021-12-31 | I72: 2022-01-31 | J72: 31.12.21 - 31.01.22 (1 months) | K72: As per FFR framework agreement | L72: 2300 | M72: 700 | N72: 8 | O72: 2300 | P72: 700 | Q72: 8 | R72: 2300 | S72: 700 | T72: 8 | U72: 79.6 | AO72: 20
A73: 144.067 | B73: Accepted | C73: NA | D73: GridBeyond Limited | E73: ENDSR-6 | F73: DNO connection | G73: DSF: Load response | H73: 2022-01-01 | I73: 2022-01-31 | J73: 01.01.22 - 31.01.22 (1 months) | K73: As per FFR framework agreement | L73: 700 | M73: 1500 | N73: 8 | O73: 700 | P73: 1500 | Q73: 8 | R73: 700 | S73: 1500 | T73: 8 | U73: 79.6 | AO73: 20
A74: 144.068 | B74: Accepted | C74: NA | D74: GridBeyond Limited | E74: ENDSR-6 | F74: DNO connection | G74: DSF: Load response | H74: 2022-01-01 | I74: 2022-01-31 | J74: 01.01.22 - 31.01.22 (1 months) | K74: As per FFR framework agreement | L74: 1500 | M74: 2300 | N74: 8 | O74: 1500 | P74: 2300 | Q74: 8 | R74: 1500 | S74: 2300 | T74: 8 | U74: 79.6 | AO74: 20
A75: 144.069 | B75: Accepted | C75: NA | D75: GridBeyond Limited | E75: ENDSR-8 | F75: DNO connection | G75: DSF: Load response | H75: 2021-12-31 | I75: 2022-01-31 | J75: 31.12.21 - 31.01.22 (1 months) | K75: As per FFR framework agreement | L75: 2300 | M75: 700 | N75: 8 | O75: 2300 | P75: 700 | Q75: 8 | R75: 2300 | S75: 700 | T75: 8 | U75: 23.88 | AO75: 6
A76: 144.07 | B76: Accepted | C76: NA | D76: GridBeyond Limited | E76: ENDSR-8 | F76: DNO connection | G76: DSF: Load response | H76: 2022-01-01 | I76: 2022-01-31 | J76: 01.01.22 - 31.01.22 (1 months) | K76: As per FFR framework agreement | L76: 700 | M76: 1500 | N76: 8 | O76: 700 | P76: 1500 | Q76: 8 | R76: 700 | S76: 1500 | T76: 8 | U76: 23.88 | AO76: 6
A77: 144.071 | B77: Accepted | C77: NA | D77: GridBeyond Limited | E77: ENDSR-8 | F77: DNO connection | G77: DSF: Load response | H77: 2022-01-01 | I77: 2022-01-31 | J77: 01.01.22 - 31.01.22 (1 months) | K77: As per FFR framework agreement | L77: 1500 | M77: 2300 | N77: 8 | O77: 1500 | P77: 2300 | Q77: 8 | R77: 1500 | S77: 2300 | T77: 8 | U77: 23.88 | AO77: 6
A78: 144.072 | B78: Accepted | C78: NA | D78: GridBeyond Limited | E78: ENDSR-9 | F78: DNO connection | G78: DSF: Load response | H78: 2021-12-31 | I78: 2022-01-31 | J78: 31.12.21 - 31.01.22 (1 months) | K78: As per FFR framework agreement | L78: 2300 | M78: 700 | N78: 8 | O78: 2300 | P78: 700 | Q78: 8 | R78: 2300 | S78: 700 | T78: 8 | U78: 23.88 | AO78: 6
A79: 144.073 | B79: Accepted | C79: NA | D79: GridBeyond Limited | E79: ENDSR-9 | F79: DNO connection | G79: DSF: Load response | H79: 2022-01-01 | I79: 2022-01-31 | J79: 01.01.22 - 31.01.22 (1 months) | K79: As per FFR framework agreement | L79: 700 | M79: 1500 | N79: 8 | O79: 700 | P79: 1500 | Q79: 8 | R79: 700 | S79: 1500 | T79: 8 | U79: 23.88 | AO79: 6
A80: 144.074 | B80: Accepted | C80: NA | D80: GridBeyond Limited | E80: ENDSR-9 | F80: DNO connection | G80: DSF: Load response | H80: 2022-01-01 | I80: 2022-01-31 | J80: 01.01.22 - 31.01.22 (1 months) | K80: As per FFR framework agreement | L80: 1500 | M80: 2300 | N80: 8 | O80: 1500 | P80: 2300 | Q80: 8 | R80: 1500 | S80: 2300 | T80: 8 | U80: 23.88 | AO80: 6
A81: 144.075 | B81: Accepted | C81: NA | D81: GridBeyond Limited | E81: ENDSR-5 | F81: DNO connection | G81: DSF: Load response | H81: 2021-12-31 | I81: 2022-01-31 | J81: 31.12.21 - 31.01.22 (1 months) | K81: As per FFR framework agreement | L81: 2300 | M81: 700 | N81: 8 | U81: 71.64 | AL81: G | AO81: 18
A82: 144.076 | B82: Accepted | C82: NA | D82: GridBeyond Limited | E82: ENDSR-5 | F82: DNO connection | G82: DSF: Load response | H82: 2022-01-01 | I82: 2022-01-31 | J82: 01.01.22 - 31.01.22 (1 months) | K82: As per FFR framework agreement | L82: 700 | M82: 1500 | N82: 8 | U82: 71.64 | AL82: H | AO82: 18
A83: 144.077 | B83: Accepted | C83: NA | D83: GridBeyond Limited | E83: ENDSR-5 | F83: DNO connection | G83: DSF: Load response | H83: 2022-01-01 | I83: 2022-01-31 | J83: 01.01.22 - 31.01.22 (1 months) | K83: As per FFR framework agreement | L83: 1500 | M83: 2300 | N83: 8 | U83: 63.68 | AL83: I | AO83: 16
A84: 144.078 | B84: Accepted | C84: NA | D84: GridBeyond Limited | E84: ENDSR-5 | F84: DNO connection | G84: DSF: Load response | H84: 2021-12-31 | I84: 2022-01-31 | J84: 31.12.21 - 31.01.22 (1 months) | K84: As per FFR framework agreement | O84: 2300 | P84: 700 | Q84: 8 | R84: 2300 | S84: 700 | T84: 8 | U84: 63.68 | AL84: G | AO84: 16
A85: 144.079 | B85: Accepted | C85: NA | D85: GridBeyond Limited | E85: ENDSR-5 | F85: DNO connection | G85: DSF: Load response | H85: 2022-01-01 | I85: 2022-01-31 | J85: 01.01.22 - 31.01.22 (1 months) | K85: As per FFR framework agreement | O85: 700 | P85: 1500 | Q85: 8 | R85: 700 | S85: 1500 | T85: 8 | U85: 63.68 | AL85: H | AO85: 16
A86: 144.08 | B86: Accepted | C86: NA | D86: GridBeyond Limited | E86: ENDSR-5 | F86: DNO connection | G86: DSF: Load response | H86: 2022-01-01 | I86: 2022-01-31 | J86: 01.01.22 - 31.01.22 (1 months) | K86: As per FFR framework agreement | O86: 1500 | P86: 2300 | Q86: 8 | R86: 1500 | S86: 2300 | T86: 8 | U86: 59.7 | AL86: I | AO86: 15
A87: 144.081 | B87: Accepted | C87: NA | D87: GridBeyond Limited | E87: ENDSR-7 | F87: DNO connection | G87: DSF: Load response | H87: 2021-12-31 | I87: 2022-01-31 | J87: 31.12.21 - 31.01.22 (1 months) | K87: As per FFR framework agreement | L87: 2300 | M87: 700 | N87: 8 | O87: 2300 | P87: 700 | Q87: 8 | R87: 2300 | S87: 700 | T87: 8 | U87: 50.7 | AO87: 13
A88: 144.082 | B88: Accepted | C88: NA | D88: GridBeyond Limited | E88: ENDSR-7 | F88: DNO connection | G88: DSF: Load response | H88: 2022-01-01 | I88: 2022-01-31 | J88: 01.01.22 - 31.01.22 (1 months) | K88: As per FFR framework agreement | L88: 700 | M88: 1500 | N88: 8 | O88: 700 | P88: 1500 | Q88: 8 | R88: 700 | S88: 1500 | T88: 8 | U88: 50.7 | AO88: 13
A89: 144.083 | B89: Accepted | C89: NA | D89: GridBeyond Limited | E89: ENDSR-7 | F89: DNO connection | G89: DSF: Load response | H89: 2022-01-01 | I89: 2022-01-31 | J89: 01.01.22 - 31.01.22 (1 months) | K89: As per FFR framework agreement | L89: 1900 | M89: 2300 | N89: 4 | O89: 1500 | P89: 2300 | Q89: 8 | R89: 1500 | S89: 2300 | T89: 8 | U89: 50.7 | AO89: 13
A90: 144.084 | B90: Rejected | C90: 2 | D90: Habitat Energy Limited | E90: COWB-1 | F90: TO connection | G90: Battery | H90: 2022-01-01 | I90: 2022-01-31 | J90: 01.01.22 - 31.01.22 (1 months) | K90: As per FFR framework agreement | L90: 700 | M90: 1500 | N90: 8 | O90: 700 | P90: 1500 | Q90: 8 | R90: 700 | S90: 1500 | T90: 8 | U90: 476 | V90: 0 | W90: 0 | X90: YES | AC90: 13.6 | AD90: 34 | AE90: 34 | AF90: 13.6 | AG90: 34 | AH90: 13.6 | AI90: 34 | AP90: OX4 7
A91: 144.085 | B91: Accepted | C91: NA | D91: Habitat Energy Limited | E91: COWB-1 | F91: TO connection | G91: Battery | H91: 2022-01-01 | I91: 2022-01-31 | J91: 01.01.22 - 31.01.22 (1 months) | K91: As per FFR framework agreement | L91: 1500 | M91: 2300 | N91: 8 | O91: 1500 | P91: 2300 | Q91: 8 | R91: 1500 | S91: 2300 | T91: 8 | U91: 700 | V91: 0 | W91: 0 | X91: YES | AC91: 8 | AD91: 20 | AE91: 20 | AF91: 8 | AG91: 20 | AH91: 8 | AI91: 20 | AP91: OX4 7
A92: 144.086 | B92: Accepted | C92: NA | D92: Habitat Energy Limited | E92: AG-HEL00G | F92: DNO connection | G92: DSF: Storage (for export) | H92: 2022-01-01 | I92: 2022-01-31 | J92: 01.01.22 - 31.01.22 (1 months) | K92: As per FFR framework agreement | L92: 700 | M92: 1500 | N92: =IF(L92>M92, (2400-L92+M92)/100, IF(AND(L92="",M92="",L92=M92), "", IF(L92=M92,24,(M92-L92)/100))) -> 8 | O92: 700 | P92: 1500 | Q92: 8 | R92: 700 | S92: 1500 | T92: 8 | U92: 367.85 | V92: 0 | W92: 0 | X92: YES | AC92: 14 | AD92: 35 | AE92: 35 | AF92: 14 | AG92: 35 | AH92: 14 | AI92: 35 | AP92: PR2 5
A93: 144.087 | B93: Accepted | C93: NA | D93: Habitat Energy Limited | E93: AG-HEL00G | F93: DNO connection | G93: DSF: Storage (for export) | H93: 2022-01-01 | I93: 2022-01-31 | J93: 01.01.22 - 31.01.22 (1 months) | K93: As per FFR framework agreement | L93: 1500 | M93: 2300 | N93: 8 | O93: 1500 | P93: 2300 | Q93: 8 | R93: 1500 | S93: 2300 | T93: 8 | U93: 774.4 | V93: 0 | W93: 0 | X93: YES | AC93: 8 | AD93: 20 | AE93: 20 | AF93: 8 | AG93: 20 | AH93: 8 | AI93: 20 | AP93: PR2 5
A94: 144.088 | B94: Accepted | C94: NA | D94: Habitat Energy Limited | E94: AG-HEL01H | F94: DNO connection | G94: DSF: Storage (for export) | H94: 2022-01-01 | I94: 2022-01-31 | J94: 01.01.22 - 31.01.22 (1 months) | K94: As per FFR framework agreement | L94: 700 | M94: 1500 | N94: 8 | O94: 700 | P94: 1500 | Q94: 8 | R94: 700 | S94: 1500 | T94: 8 | U94: 102.3 | V94: 0 | W94: 0 | X94: YES | AC94: 4 | AD94: 10 | AE94: 10 | AF94: 4 | AG94: 10 | AH94: 4 | AI94: 10 | AP94: SN12
A95: 144.089 | B95: Accepted | C95: NA | D95: Habitat Energy Limited | E95: AG-HEL01H | F95: DNO connection | G95: DSF: Storage (for export) | H95: 2022-01-01 | I95: 2022-01-31 | J95: 01.01.22 - 31.01.22 (1 months) | K95: As per FFR framework agreement | L95: 1500 | M95: 2300 | N95: 8 | O95: 1500 | P95: 2300 | Q95: 8 | R95: 1500 | S95: 2300 | T95: 8 | U95: 378.2 | V95: 0 | W95: 0 | X95: YES | AC95: 4 | AD95: 10 | AE95: 10 | AF95: 4 | AG95: 10 | AH95: 4 | AI95: 10 | AP95: SN12
A96: 144.09 | B96: Accepted | C96: NA | D96: Kiwi Power Ltd | E96: KIWIS-1 | F96: DNO connection | G96: DSF: Load response | H96: 2021-12-31 | I96: 2022-01-31 | J96: 31.12.21 - 31.01.22 (1 months) | K96: As per FFR framework agreement | L96: 2300 | M96: 700 | N96: 8 | O96: 2300 | P96: 700 | Q96: 8 | R96: 2300 | S96: 700 | T96: 8 | U96: 49.5 | AO96: 15 | AP96: S33 6 ST10 3EQ
A97: 144.091 | B97: Accepted | C97: NA | D97: Kiwi Power Ltd | E97: KIWIS-1 | F97: DNO connection | G97: DSF: Load response | H97: 2022-01-01 | I97: 2022-01-31 | J97: 01.01.22 - 31.01.22 (1 months) | K97: As per FFR framework agreement | L97: 700 | M97: 1500 | N97: 8 | O97: 700 | P97: 1500 | Q97: 8 | R97: 700 | S97: 1500 | T97: 8 | U97: 51 | AO97: 15 | AP97: S33 6 ST10 3EQ
A98: 144.092 | B98: Accepted | C98: NA | D98: Kiwi Power Ltd | E98: KIWIS-1 | F98: DNO connection | G98: DSF: Load response | H98: 2022-01-01 | I98: 2022-01-31 | J98: 01.01.22 - 31.01.22 (1 months) | K98: As per FFR framework agreement | L98: 1500 | M98: 2300 | N98: 8 | O98: 1500 | P98: 2300 | Q98: 8 | R98: 1500 | S98: 2300 | T98: 8 | U98: 51 | AO98: 15 | AP98: S33 6 ST10 3EQ
A99: 144.093 | B99: Rejected | C99: 2 | D99: Kiwi Power Ltd | E99: KIWIE-5 | F99: DNO connection | G99: DSF: Storage (onsite) | H99: 2021-12-31 | I99: 2022-01-31 | J99: 31.12.21 - 31.01.22 (1 months) | K99: As per FFR framework agreement | L99: 2300 | M99: 700 | N99: =IF(L99>M99, (2400-L99+M99)/100, IF(AND(L99="",M99="",L99=M99), "", IF(L99=M99,24,(M99-L99)/100))) -> 8 | O99: 2300 | P99: 700 | Q99: =IF(O99>P99, (2400-O99+P99)/100, IF(AND(O99="",P99="",O99=P99), "", IF(O99=P99,24,(P99-O99)/100))) -> 8 | R99: 2300 | S99: 700 | T99: =IF(R99>S99, (2400-R99+S99)/100, IF(AND(R99="",S99="",R99=S99), "", IF(R99=S99,24,(S99-R99)/100))) -> 8 | U99: 60 | AC99: 1.6 | AD99: 4 | AE99: 4 | AF99: 1.6 | AG99: 4 | AH99: 1.6 | AI99: 4 | AP99: TS13
A100: =A99+0.001 -> 144.094 | B100: Rejected | C100: 2 | D100: Kiwi Power Ltd | E100: KIWIE-5 | F100: DNO connection | G100: DSF: Storage (onsite) | H100: 2022-01-01 | I100: 2022-01-31 | J100: 01.01.22 - 31.01.22 (1 months) | K100: As per FFR framework agreement | L100: 700 | M100: 1500 | N100: =IF(L100>M100, (2400-L100+M100)/100, IF(AND(L100="",M100="",L100=M100), "", IF(L100=M100,24,(M100-L100)/100))) -> 8 | O100: 700 | P100: 1500 | Q100: =IF(O100>P100, (2400-O100+P100)/100, IF(AND(O100="",P100="",O100=P100), "", IF(O100=P100,24,(P100-O100)/100))) -> 8 | R100: 700 | S100: 1500 | T100: =IF(R100>S100, (2400-R100+S100)/100, IF(AND(R100="",S100="",R100=S100), "", IF(R100=S100,24,(S100-R100)/100))) -> 8 | U100: 66 | AC100: 1.6 | AD100: 4 | AE100: 4 | AF100: 1.6 | AG100: 4 | AH100: 1.6 | AI100: 4 | AP100: TS13
A101: 144.095 | B101: Accepted | C101: NA | D101: Kiwi Power Ltd | E101: KIWIE-5 | F101: DNO connection | G101: DSF: Storage (onsite) | H101: 2022-01-01 | I101: 2022-01-31 | J101: 01.01.22 - 31.01.22 (1 months) | K101: As per FFR framework agreement | L101: 1500 | M101: 2300 | N101: 8 | O101: 1500 | P101: 2300 | Q101: 8 | R101: 1500 | S101: 2300 | T101: 8 | U101: 72 | AC101: 1.6 | AD101: 4 | AE101: 4 | AF101: 1.6 | AG101: 4 | AH101: 1.6 | AI101: 4 | AP101: TS13
A102: 144.096 | B102: Rejected | C102: 2 | D102: Kiwi Power Ltd | E102: KIWIDA-1 | F102: DNO connection | G102: DSF: Storage (onsite) | H102: 2021-12-31 | I102: 2022-01-31 | J102: 31.12.21 - 31.01.22 (1 months) | K102: As per FFR framework agreement | L102: 2300 | M102: 700 | N102: =IF(L102>M102, (2400-L102+M102)/100, IF(AND(L102="",M102="",L102=M102), "", IF(L102=M102,24,(M102-L102)/100))) -> 8 | O102: 2300 | P102: 700 | Q102: =IF(O102>P102, (2400-O102+P102)/100, IF(AND(O102="",P102="",O102=P102), "", IF(O102=P102,24,(P102-O102)/100))) -> 8 | R102: 2300 | S102: 700 | T102: =IF(R102>S102, (2400-R102+S102)/100, IF(AND(R102="",S102="",R102=S102), "", IF(R102=S102,24,(S102-R102)/100))) -> 8 | U102: 36 | AC102: 0.8 | AD102: 2 | AE102: 2 | AF102: 0.8 | AG102: 2 | AH102: 0.8 | AI102: 2 | AP102: PL6 7
A103: =A102+0.001 -> 144.097 | B103: Rejected | C103: 2 | D103: Kiwi Power Ltd | E103: KIWIDA-1 | F103: DNO connection | G103: DSF: Storage (onsite) | H103: 2022-01-01 | I103: 2022-01-31 | J103: 01.01.22 - 31.01.22 (1 months) | K103: As per FFR framework agreement | L103: 700 | M103: 1500 | N103: =IF(L103>M103, (2400-L103+M103)/100, IF(AND(L103="",M103="",L103=M103), "", IF(L103=M103,24,(M103-L103)/100))) -> 8 | O103: 700 | P103: 1500 | Q103: =IF(O103>P103, (2400-O103+P103)/100, IF(AND(O103="",P103="",O103=P103), "", IF(O103=P103,24,(P103-O103)/100))) -> 8 | R103: 700 | S103: 1500 | T103: =IF(R103>S103, (2400-R103+S103)/100, IF(AND(R103="",S103="",R103=S103), "", IF(R103=S103,24,(S103-R103)/100))) -> 8 | U103: 39 | AC103: 0.8 | AD103: 2 | AE103: 2 | AF103: 0.8 | AG103: 2 | AH103: 0.8 | AI103: 2 | AP103: PL6 7
A104: 144.098 | B104: Accepted | C104: NA | D104: Kiwi Power Ltd | E104: KIWIDA-1 | F104: DNO connection | G104: DSF: Storage (onsite) | H104: 2022-01-01 | I104: 2022-01-31 | J104: 01.01.22 - 31.01.22 (1 months) | K104: As per FFR framework agreement | L104: 1500 | M104: 2300 | N104: 8 | O104: 1500 | P104: 2300 | Q104: 8 | R104: 1500 | S104: 2300 | T104: 8 | U104: 42 | AC104: 0.8 | AD104: 2 | AE104: 2 | AF104: 0.8 | AG104: 2 | AH104: 0.8 | AI104: 2 | AP104: PL6 7
A105: 144.099 | B105: Rejected | C105: 2 | D105: Kiwi Power Ltd | E105: KIWIE-2 | F105: DNO connection | G105: DSF: Storage (onsite) | H105: 2021-12-31 | I105: 2022-01-31 | J105: 31.12.21 - 31.01.22 (1 months) | K105: As per FFR framework agreement | L105: 2300 | M105: 700 | N105: =IF(L105>M105, (2400-L105+M105)/100, IF(AND(L105="",M105="",L105=M105), "", IF(L105=M105,24,(M105-L105)/100))) -> 8 | O105: 2300 | P105: 700 | Q105: =IF(O105>P105, (2400-O105+P105)/100, IF(AND(O105="",P105="",O105=P105), "", IF(O105=P105,24,(P105-O105)/100))) -> 8 | R105: 2300 | S105: 700 | T105: =IF(R105>S105, (2400-R105+S105)/100, IF(AND(R105="",S105="",R105=S105), "", IF(R105=S105,24,(S105-R105)/100))) -> 8 | U105: 72 | AC105: 1.6 | AD105: 4 | AE105: 4 | AF105: 1.6 | AG105: 4 | AH105: 1.6 | AI105: 4 | AP105: CF33
A106: 144.1 | B106: Rejected | C106: 2 | D106: Kiwi Power Ltd | E106: KIWIE-2 | F106: DNO connection | G106: DSF: Storage (onsite) | H106: 2022-01-01 | I106: 2022-01-31 | J106: 01.01.22 - 31.01.22 (1 months) | K106: As per FFR framework agreement | L106: 700 | M106: 1500 | N106: =IF(L106>M106, (2400-L106+M106)/100, IF(AND(L106="",M106="",L106=M106), "", IF(L106=M106,24,(M106-L106)/100))) -> 8 | O106: 700 | P106: 1500 | Q106: =IF(O106>P106, (2400-O106+P106)/100, IF(AND(O106="",P106="",O106=P106), "", IF(O106=P106,24,(P106-O106)/100))) -> 8 | R106: 700 | S106: 1500 | T106: =IF(R106>S106, (2400-R106+S106)/100, IF(AND(R106="",S106="",R106=S106), "", IF(R106=S106,24,(S106-R106)/100))) -> 8 | U106: 78 | AC106: 1.6 | AD106: 4 | AE106: 4 | AF106: 1.6 | AG106: 4 | AH106: 1.6 | AI106: 4 | AP106: CF33
A107: 144.101 | B107: Accepted | C107: NA | D107: Kiwi Power Ltd | E107: KIWIE-2 | F107: DNO connection | G107: DSF: Storage (onsite) | H107: 2022-01-01 | I107: 2022-01-31 | J107: 01.01.22 - 31.01.22 (1 months) | K107: As per FFR framework agreement | L107: 1500 | M107: 2300 | N107: 8 | O107: 1500 | P107: 2300 | Q107: 8 | R107: 1500 | S107: 2300 | T107: 8 | U107: 84 | AC107: 1.6 | AD107: 4 | AE107: 4 | AF107: 1.6 | AG107: 4 | AH107: 1.6 | AI107: 4 | AP107: CF33
A108: 144.102 | B108: Accepted | C108: NA | D108: Kiwi Power Ltd | E108: KIWIS-2 | F108: DNO connection | G108: DSF: Load response | H108: 2021-12-31 | I108: 2022-01-31 | J108: 31.12.21 - 31.01.22 (1 months) | K108: As per FFR framework agreement | L108: 2300 | M108: 700 | N108: =IF(L108>M108, (2400-L108+M108)/100, IF(AND(L108="",M108="",L108=M108), "", IF(L108=M108,24,(M108-L108)/100))) -> 8 | O108: 2300 | P108: 700 | Q108: =IF(O108>P108, (2400-O108+P108)/100, IF(AND(O108="",P108="",O108=P108), "", IF(O108=P108,24,(P108-O108)/100))) -> 8 | R108: 2300 | S108: 700 | T108: =IF(R108>S108, (2400-R108+S108)/100, IF(AND(R108="",S108="",R108=S108), "", IF(R108=S108,24,(S108-R108)/100))) -> 8 | U108: 32 | AO108: 10 | AP108: N/A
A109: 144.103 | B109: Accepted | C109: NA | D109: Kiwi Power Ltd | E109: KIWIS-2 | F109: DNO connection | G109: DSF: Load response | H109: 2022-01-01 | I109: 2022-01-31 | J109: 01.01.22 - 31.01.22 (1 months) | K109: As per FFR framework agreement | L109: 700 | M109: 1500 | N109: =IF(L109>M109, (2400-L109+M109)/100, IF(AND(L109="",M109="",L109=M109), "", IF(L109=M109,24,(M109-L109)/100))) -> 8 | O109: 700 | P109: 1500 | Q109: =IF(O109>P109, (2400-O109+P109)/100, IF(AND(O109="",P109="",O109=P109), "", IF(O109=P109,24,(P109-O109)/100))) -> 8 | R109: 700 | S109: 1500 | T109: =IF(R109>S109, (2400-R109+S109)/100, IF(AND(R109="",S109="",R109=S109), "", IF(R109=S109,24,(S109-R109)/100))) -> 8 | U109: 33.5 | AO109: 10 | AP109: N/A
A110: 144.104 | B110: Accepted | C110: NA | D110: Kiwi Power Ltd | E110: KIWIS-2 | F110: DNO connection | G110: DSF: Load response | H110: 2022-01-01 | I110: 2022-01-31 | J110: 01.01.22 - 31.01.22 (1 months) | K110: As per FFR framework agreement | L110: 1500 | M110: 2300 | N110: 8 | O110: 1500 | P110: 2300 | Q110: 8 | R110: 1500 | S110: 2300 | T110: 8 | U110: 34 | AO110: 10 | AP110: N/A
A111: 144.105 | B111: Accepted | C111: NA | D111: Kiwi Power Ltd | E111: KIWIS-3 | F111: DNO connection | G111: DSF: Load response | H111: 2021-12-31 | I111: 2022-01-31 | J111: 31.12.21 - 31.01.22 (1 months) | K111: As per FFR framework agreement | L111: 2300 | M111: 700 | N111: =IF(L111>M111, (2400-L111+M111)/100, IF(AND(L111="",M111="",L111=M111), "", IF(L111=M111,24,(M111-L111)/100))) -> 8 | O111: 2300 | P111: 700 | Q111: =IF(O111>P111, (2400-O111+P111)/100, IF(AND(O111="",P111="",O111=P111), "", IF(O111=P111,24,(P111-O111)/100))) -> 8 | R111: 2300 | S111: 700 | T111: =IF(R111>S111, (2400-R111+S111)/100, IF(AND(R111="",S111="",R111=S111), "", IF(R111=S111,24,(S111-R111)/100))) -> 8 | U111: 6 | AO111: 2 | AP111: N/A
A112: 144.106 | B112: Accepted | C112: NA | D112: Kiwi Power Ltd | E112: KIWIS-3 | F112: DNO connection | G112: DSF: Load response | H112: 2022-01-01 | I112: 2022-01-31 | J112: 01.01.22 - 31.01.22 (1 months) | K112: As per FFR framework agreement | L112: 700 | M112: 1500 | N112: =IF(L112>M112, (2400-L112+M112)/100, IF(AND(L112="",M112="",L112=M112), "", IF(L112=M112,24,(M112-L112)/100))) -> 8 | O112: 700 | P112: 1500 | Q112: =IF(O112>P112, (2400-O112+P112)/100, IF(AND(O112="",P112="",O112=P112), "", IF(O112=P112,24,(P112-O112)/100))) -> 8 | R112: 700 | S112: 1500 | T112: =IF(R112>S112, (2400-R112+S112)/100, IF(AND(R112="",S112="",R112=S112), "", IF(R112=S112,24,(S112-R112)/100))) -> 8 | U112: 6.6 | AO112: 2 | AP112: N/A
A113: 144.107 | B113: Accepted | C113: NA | D113: Kiwi Power Ltd | E113: KIWIS-3 | F113: DNO connection | G113: DSF: Load response | H113: 2022-01-01 | I113: 2022-01-31 | J113: 01.01.22 - 31.01.22 (1 months) | K113: As per FFR framework agreement | L113: 1500 | M113: 2300 | N113: 8 | O113: 1500 | P113: 2300 | Q113: 8 | R113: 1500 | S113: 2300 | T113: 8 | U113: 6.8 | AO113: 2 | AP113: N/A
A114: 144.108 | B114: Accepted | C114: NA | D114: Kiwi Power Ltd | E114: KIWIS-4 | F114: DNO connection | G114: DSF: Load response | H114: 2021-12-31 | I114: 2022-01-31 | J114: 31.12.21 - 31.01.22 (1 months) | K114: As per FFR framework agreement | L114: 2300 | M114: 700 | N114: =IF(L114>M114, (2400-L114+M114)/100, IF(AND(L114="",M114="",L114=M114), "", IF(L114=M114,24,(M114-L114)/100))) -> 8 | O114: 2300 | P114: 700 | Q114: =IF(O114>P114, (2400-O114+P114)/100, IF(AND(O114="",P114="",O114=P114), "", IF(O114=P114,24,(P114-O114)/100))) -> 8 | R114: 2300 | S114: 700 | T114: =IF(R114>S114, (2400-R114+S114)/100, IF(AND(R114="",S114="",R114=S114), "", IF(R114=S114,24,(S114-R114)/100))) -> 8 | U114: 26.8 | AO114: 8 | AP114: N/A
A115: 144.109 | B115: Accepted | C115: NA | D115: Kiwi Power Ltd | E115: KIWIS-4 | F115: DNO connection | G115: DSF: Load response | H115: 2022-01-01 | I115: 2022-01-31 | J115: 01.01.22 - 31.01.22 (1 months) | K115: As per FFR framework agreement | L115: 700 | M115: 1500 | N115: =IF(L115>M115, (2400-L115+M115)/100, IF(AND(L115="",M115="",L115=M115), "", IF(L115=M115,24,(M115-L115)/100))) -> 8 | O115: 700 | P115: 1500 | Q115: =IF(O115>P115, (2400-O115+P115)/100, IF(AND(O115="",P115="",O115=P115), "", IF(O115=P115,24,(P115-O115)/100))) -> 8 | R115: 700 | S115: 1500 | T115: =IF(R115>S115, (2400-R115+S115)/100, IF(AND(R115="",S115="",R115=S115), "", IF(R115=S115,24,(S115-R115)/100))) -> 8 | U115: 27.2 | AO115: 8 | AP115: N/A
A116: 144.11 | B116: Accepted | C116: NA | D116: Kiwi Power Ltd | E116: KIWIS-4 | F116: DNO connection | G116: DSF: Load response | H116: 2022-01-01 | I116: 2022-01-31 | J116: 01.01.22 - 31.01.22 (1 months) | K116: As per FFR framework agreement | L116: 1500 | M116: 2300 | N116: 8 | O116: 1500 | P116: 2300 | Q116: 8 | R116: 1500 | S116: 2300 | T116: 8 | U116: 27.6 | AO116: 8 | AP116: N/A
A117: 144.111 | B117: Accepted | C117: NA | D117: Limejump Ltd | E117: LJDYN-2 | F117: DNO connection | G117: DSF: Storage (for export) | H117: 2021-12-31 | I117: 2022-01-31 | J117: =IFERROR(TEXT(H117,"DD.MM.YY")&" - "&TEXT(I117,"DD.MM.YY")&" ("&DATEDIF(H117,I117+1,"m")&" months)","Tender End Date is Before Start Date") -> 31.12.21 - 31.01.22 (1 months) | K117: As per FFR framework agreement | L117: 2300 | M117: 700 | N117: 8 | O117: 2300 | P117: 700 | Q117: 8 | R117: 2300 | S117: 700 | T117: 8 | U117: 160.08 | AC117: 4.8 | AD117: 12 | AE117: 12 | AF117: 4.8 | AG117: 12 | AH117: 4.8 | AI117: 12 | AP117: YO12 | AQ117: H for 30 minutes only
A118: 144.112 | B118: Rejected | C118: 2 | D118: Limejump Ltd | E118: LJDYN-2 | F118: DNO connection | G118: DSF: Storage (for export) | H118: 2022-01-01 | I118: 2022-01-31 | J118: =IFERROR(TEXT(H118,"DD.MM.YY")&" - "&TEXT(I118,"DD.MM.YY")&" ("&DATEDIF(H118,I118+1,"m")&" months)","Tender End Date is Before Start Date") -> 01.01.22 - 31.01.22 (1 months) | K118: As per FFR framework agreement | L118: 700 | M118: 1500 | N118: 8 | O118: 700 | P118: 1500 | Q118: 8 | R118: 700 | S118: 1500 | T118: 8 | U118: 159.48 | AC118: 4.8 | AD118: 12 | AE118: 12 | AF118: 4.8 | AG118: 12 | AH118: 4.8 | AI118: 12 | AP118: YO12 | AQ118: H for 30 minutes only
A119: 144.113 | B119: Accepted | C119: NA | D119: Limejump Ltd | E119: LJDYN-2 | F119: DNO connection | G119: DSF: Storage (for export) | H119: 2022-01-01 | I119: 2022-01-31 | J119: 01.01.22 - 31.01.22 (1 months) | K119: As per FFR framework agreement | L119: 1500 | M119: 2300 | N119: 8 | O119: 1500 | P119: 2300 | Q119: 8 | R119: 1500 | S119: 2300 | T119: 8 | U119: 359.64 | AC119: 4.8 | AD119: 12 | AE119: 12 | AF119: 4.8 | AG119: 12 | AH119: 4.8 | AI119: 12 | AP119: YO12 | AQ119: H for 30 minutes only
A120: 144.114 | B120: Accepted | C120: NA | D120: Open Energi Limited | E120: OPEN-1 | F120: DNO connection | G120: DSF: Load response | H120: 2021-12-31 | I120: 2022-01-31 | J120: 31.12.21 - 31.01.22 (1 months) | K120: As per FFR framework agreement | L120: 2300 | M120: 700 | N120: =IF(L120>M120, (2400-L120+M120)/100, IF(AND(L120="",M120="",L120=M120), "", IF(L120=M120,24,(M120-L120)/100))) -> 8 | O120: 2300 | P120: 700 | Q120: =IF(O120>P120, (2400-O120+P120)/100, IF(AND(O120="",P120="",O120=P120), "", IF(O120=P120,24,(P120-O120)/100))) -> 8 | R120: 2300 | S120: 700 | T120: =IF(R120>S120, (2400-R120+S120)/100, IF(AND(R120="",S120="",R120=S120), "", IF(R120=S120,24,(S120-R120)/100))) -> 8 | U120: 25.9 | AC120: 0.8 | AD120: 2 | AE120: 2 | AF120: 0.8 | AG120: 2 | AH120: 0.8 | AI120: 2 | AL120: A | AP120: Aggregated
A121: 144.115 | B121: Rejected | C121: 2 | D121: Open Energi Limited | E121: OPEN-1 | F121: DNO connection | G121: DSF: Load response | H121: 2022-01-01 | I121: 2022-01-31 | J121: 01.01.22 - 31.01.22 (1 months) | K121: As per FFR framework agreement | L121: 700 | M121: 1500 | N121: =IF(L121>M121, (2400-L121+M121)/100, IF(AND(L121="",M121="",L121=M121), "", IF(L121=M121,24,(M121-L121)/100))) -> 8 | O121: 700 | P121: 1500 | Q121: 8 | R121: 700 | S121: 1500 | T121: 8 | U121: 25.9 | AC121: 0.8 | AD121: 2 | AE121: 2 | AF121: 0.8 | AG121: 2 | AH121: 0.8 | AI121: 2 | AL121: B | AP121: Aggregated
A122: 144.116 | B122: Accepted | C122: NA | D122: Open Energi Limited | E122: OPEN-1 | F122: DNO connection | G122: DSF: Load response | H122: 2022-01-01 | I122: 2022-01-31 | J122: 01.01.22 - 31.01.22 (1 months) | K122: As per FFR framework agreement | L122: 1900 | M122: 2300 | N122: 4 | O122: 1500 | P122: 2300 | Q122: 8 | R122: 1500 | S122: 2300 | T122: 8 | U122: 49.9 | AC122: 0.8 | AD122: 2 | AE122: 2 | AF122: 0.8 | AG122: 2 | AH122: 0.8 | AI122: 2 | AL122: C | AP122: Aggregated
A123: 144.117 | B123: Rejected | C123: 2 | D123: Erova Energy | E123: V__BEROV001 | F123: DNO connection | G123: Battery | H123: 2022-01-01 | I123: 2022-01-31 | J123: 01.01.22 - 31.01.22 (1 months) | K123: As per FFR framework agreement | L123: 700 | M123: 1500 | N123: 8 | O123: 700 | P123: 1500 | Q123: 8 | R123: 700 | S123: 1500 | T123: 8 | U123: 138.6 | AC123: 3.6 | AD123: 9 | AE123: 9 | AF123: 3.6 | AG123: 9 | AH123: 2.8 | AI123: 7 | AL123: D | AP123: LE65
A124: 144.118 | B124: Rejected | C124: 2 | D124: Erova Energy | E124: V__BEROV001 | F124: DNO connection | G124: Battery | H124: 2022-01-01 | I124: 2022-01-31 | J124: 01.01.22 - 31.01.22 (1 months) | K124: As per FFR framework agreement | L124: 1900 | M124: 2300 | N124: 4 | O124: 1900 | P124: 2300 | Q124: 4 | R124: 1900 | S124: 2300 | T124: 4 | U124: 350.55 | AC124: 3.6 | AD124: 9 | AE124: 9 | AF124: 3.6 | AG124: 9 | AH124: 2.8 | AI124: 7 | AL124: E | AP124: LE65
A125: 144.119 | B125: Accepted | C125: NA | D125: OSSPV001 Limited | E125: OEL1-FFR | F125: DNO connection | G125: Battery | H125: 2021-12-31 | I125: 2022-01-31 | J125: 31.12.21 - 31.01.22 (1 months) | K125: As per FFR framework agreement | L125: 2300 | M125: 1500 | N125: 16 | O125: 2300 | P125: 2300 | Q125: 24 | R125: 2300 | S125: 2300 | T125: 24 | U125: 105.39 | AC125: 3.6 | AD125: 9 | AE125: 9 | AF125: 3.6 | AG125: 9 | AH125: 3.6 | AI125: 9
A126: 144.12 | B126: Accepted | C126: NA | D126: OSSPV001 Limited | E126: OEL1-FFR | F126: DNO connection | G126: Battery | H126: 2022-01-01 | I126: 2022-01-31 | J126: 01.01.22 - 31.01.22 (1 months) | K126: As per FFR framework agreement | L126: 1500 | M126: 1900 | N126: 4 | U126: 399.87 | AC126: 3.6 | AD126: 9 | AE126: 9 | AF126: 3.6 | AG126: 9 | AH126: 3.6 | AI126: 9
A127: 144.121 | B127: Accepted | C127: NA | D127: OSSPV001 Limited | E127: OEL1-FFR | F127: DNO connection | G127: Battery | H127: 2022-01-01 | I127: 2022-01-31 | J127: 01.01.22 - 31.01.22 (1 months) | K127: As per FFR framework agreement | L127: 1900 | M127: 2300 | N127: 4 | U127: 105.39 | AC127: 3.6 | AD127: 9 | AE127: 9 | AF127: 3.6 | AG127: 9 | AH127: 3.6 | AI127: 9
A128: 144.122 | B128: Accepted | C128: NA | D128: Social Energy Limited | E128: SOC1-FFR | F128: DNO connection | G128: DSF: Storage (onsite) | H128: 2021-12-31 | I128: 2022-01-31 | J128: 31.12.21 - 31.01.22 (1 months) | K128: As per FFR framework agreement | L128: 2300 | M128: 1500 | N128: 16 | O128: 2300 | P128: 1500 | Q128: 16 | R128: 2300 | S128: 1500 | T128: 16 | U128: 11.81 | AC128: 0.4 | AD128: 1 | AE128: 1 | AF128: 0.4 | AG128: 1 | AH128: 0.4 | AI128: 1 | AQ128: H for only 30min
A129: 144.123 | B129: Accepted | C129: NA | D129: Social Energy Limited | E129: SOC1-FFR | F129: DNO connection | G129: DSF: Storage (onsite) | H129: 2022-01-01 | I129: 2022-01-31 | J129: =IFERROR(TEXT(H129,"DD.MM.YY")&" - "&TEXT(I129,"DD.MM.YY")&" ("&DATEDIF(H129,I129+1,"m")&" months)","Tender End Date is Before Start Date") -> 01.01.22 - 31.01.22 (1 months) | K129: As per FFR framework agreement | L129: 1500 | M129: 1900 | N129: 4 | O129: 1500 | P129: 1900 | Q129: 4 | R129: 1500 | S129: 1900 | T129: 4 | U129: 23.99 | AC129: 0.4 | AD129: 1 | AE129: 1 | AF129: 0.4 | AG129: 1 | AH129: 0.4 | AI129: 1 | AQ129: H for only 30min
A130: 144.124 | B130: Accepted | C130: NA | D130: Social Energy Limited | E130: SOC1-FFR | F130: DNO connection | G130: DSF: Storage (onsite) | H130: 2022-01-01 | I130: 2022-01-31 | J130: 01.01.22 - 31.01.22 (1 months) | K130: As per FFR framework agreement | L130: 1900 | M130: 2300 | N130: 4 | O130: 1900 | P130: 2300 | Q130: 4 | R130: 1900 | S130: 2300 | T130: 4 | U130: 15.98 | AC130: 0.4 | AD130: 1 | AE130: 1 | AF130: 0.4 | AG130: 1 | AH130: 0.4 | AI130: 1 | AQ130: H for only 30min
A131: 144.125 | B131: Accepted | C131: NA | D131: Social Energy Limited | E131: SOC2-FFR | F131: DNO connection | G131: DSF: Storage (onsite) | H131: 2021-12-31 | I131: 2022-01-31 | J131: 31.12.21 - 31.01.22 (1 months) | K131: As per FFR framework agreement | L131: 2300 | M131: 1500 | N131: 16 | O131: 2300 | P131: 1500 | Q131: 16 | R131: 2300 | S131: 1500 | T131: 16 | U131: 12.02 | AC131: 0.4 | AD131: 1 | AE131: 1 | AF131: 0.4 | AG131: 1 | AH131: 0.4 | AI131: 1 | AQ131: H for only 30min
A132: 144.126 | B132: Accepted | C132: NA | D132: Social Energy Limited | E132: SOC2-FFR | F132: DNO connection | G132: DSF: Storage (onsite) | H132: 2022-01-01 | I132: 2022-01-31 | J132: 01.01.22 - 31.01.22 (1 months) | K132: As per FFR framework agreement | L132: 1500 | M132: 1900 | N132: 4 | O132: 1500 | P132: 1900 | Q132: 4 | R132: 1500 | S132: 1900 | T132: 4 | U132: 24.67 | AC132: 0.4 | AD132: 1 | AE132: 1 | AF132: 0.4 | AG132: 1 | AH132: 0.4 | AI132: 1 | AQ132: H for only 30min
A133: 144.127 | B133: Accepted | C133: NA | D133: Social Energy Limited | E133: SOC2-FFR | F133: DNO connection | G133: DSF: Storage (onsite) | H133: 2022-01-01 | I133: 2022-01-31 | J133: 01.01.22 - 31.01.22 (1 months) | K133: As per FFR framework agreement | L133: 1900 | M133: 2300 | N133: 4 | O133: 1900 | P133: 2300 | Q133: 4 | R133: 1900 | S133: 2300 | T133: 4 | U133: 16.64 | AC133: 0.4 | AD133: 1 | AE133: 1 | AF133: 0.4 | AG133: 1 | AH133: 0.4 | AI133: 1 | AQ133: H for only 30min
A134: 144.128 | B134: Accepted | C134: NA | D134: Social Energy Limited | E134: SOC4-FFR | F134: DNO connection | G134: DSF: Storage (onsite) | H134: 2021-12-31 | I134: 2022-01-31 | J134: 31.12.21 - 31.01.22 (1 months) | K134: As per FFR framework agreement | L134: 2300 | M134: 1500 | N134: 16 | O134: 2300 | P134: 1500 | Q134: 16 | R134: 2300 | S134: 1500 | T134: 16 | U134: 12.42 | AC134: 0.4 | AD134: 1 | AE134: 1 | AF134: 0.4 | AG134: 1 | AH134: 0.4 | AI134: 1 | AQ134: H for only 30min
A135: 144.129 | B135: Accepted | C135: NA | D135: Social Energy Limited | E135: SOC4-FFR | F135: DNO connection | G135: DSF: Storage (onsite) | H135: 2022-01-01 | I135: 2022-01-31 | J135: 01.01.22 - 31.01.22 (1 months) | K135: As per FFR framework agreement | L135: 1500 | M135: 1900 | N135: 4 | O135: 1500 | P135: 1900 | Q135: 4 | R135: 1500 | S135: 1900 | T135: 4 | U135: 26.01 | AC135: 0.4 | AD135: 1 | AE135: 1 | AF135: 0.4 | AG135: 1 | AH135: 0.4 | AI135: 1 | AQ135: H for only 30min
A136: =A135+0.001 -> 144.13 | B136: Accepted | C136: NA | D136: Social Energy Limited | E136: SOC4-FFR | F136: DNO connection | G136: DSF: Storage (onsite) | H136: 2022-01-01 | I136: 2022-01-31 | J136: 01.01.22 - 31.01.22 (1 months) | K136: As per FFR framework agreement | L136: 1900 | M136: 2300 | N136: 4 | O136: 1900 | P136: 2300 | Q136: 4 | R136: 1900 | S136: 2300 | T136: 4 | U136: 17.95 | AC136: 0.4 | AD136: 1 | AE136: 1 | AF136: 0.4 | AG136: 1 | AH136: 0.4 | AI136: 1 | AQ136: H for only 30min
A137: 144.131 | B137: Accepted | C137: NA | D137: Social Energy Limited | E137: SOC5-FFR | F137: DNO connection | G137: DSF: Storage (onsite) | H137: 2021-12-31 | I137: 2022-01-31 | J137: 31.12.21 - 31.01.22 (1 months) | K137: As per FFR framework agreement | L137: 2300 | M137: 1500 | N137: 16 | O137: 2300 | P137: 1500 | Q137: 16 | R137: 2300 | S137: 1500 | T137: 16 | U137: 12.64 | AC137: 0.4 | AD137: 1 | AE137: 1 | AF137: 0.4 | AG137: 1 | AH137: 0.4 | AI137: 1 | AQ137: H for only 30min
A138: 144.132 | B138: Accepted | C138: NA | D138: Social Energy Limited | E138: SOC5-FFR | F138: DNO connection | G138: DSF: Storage (onsite) | H138: 2022-01-01 | I138: 2022-01-31 | J138: 01.01.22 - 31.01.22 (1 months) | K138: As per FFR framework agreement | L138: 1500 | M138: 1900 | N138: 4 | O138: 1500 | P138: 1900 | Q138: 4 | R138: 1500 | S138: 1900 | T138: 4 | U138: 26.67 | AC138: 0.4 | AD138: 1 | AE138: 1 | AF138: 0.4 | AG138: 1 | AH138: 0.4 | AI138: 1 | AQ138: H for only 30min
A139: 144.133 | B139: Accepted | C139: NA | D139: Social Energy Limited | E139: SOC5-FFR | F139: DNO connection | G139: DSF: Storage (onsite) | H139: 2022-01-01 | I139: 2022-01-31 | J139: 01.01.22 - 31.01.22 (1 months) | K139: As per FFR framework agreement | L139: 1900 | M139: 2300 | N139: 4 | O139: 1900 | P139: 2300 | Q139: 4 | R139: 1900 | S139: 2300 | T139: 4 | U139: 18.62 | AC139: 0.4 | AD139: 1 | AE139: 1 | AF139: 0.4 | AG139: 1 | AH139: 0.4 | AI139: 1 | AQ139: H for only 30min
A140: 144.134 | B140: Accepted | C140: NA | D140: Social Energy Limited | E140: SOC6-FFR | F140: DNO connection | G140: DSF: Storage (onsite) | H140: 2021-12-31 | I140: 2022-01-31 | J140: 31.12.21 - 31.01.22 (1 months) | K140: As per FFR framework agreement | L140: 2300 | M140: 1500 | N140: 16 | O140: 2300 | P140: 1500 | Q140: 16 | R140: 2300 | S140: 1500 | T140: 16 | U140: 12.81 | AC140: 0.4 | AD140: 1 | AE140: 1 | AF140: 0.4 | AG140: 1 | AH140: 0.4 | AI140: 1 | AQ140: H for only 30min
A141: 144.135 | B141: Accepted | C141: NA | D141: Social Energy Limited | E141: SOC6-FFR | F141: DNO connection | G141: DSF: Storage (onsite) | H141: 2022-01-01 | I141: 2022-01-31 | J141: 01.01.22 - 31.01.22 (1 months) | K141: As per FFR framework agreement | L141: 1500 | M141: 1900 | N141: 4 | O141: 1500 | P141: 1900 | Q141: 4 | R141: 1500 | S141: 1900 | T141: 4 | U141: 27.35 | AC141: 0.4 | AD141: 1 | AE141: 1 | AF141: 0.4 | AG141: 1 | AH141: 0.4 | AI141: 1 | AQ141: H for only 30min
A142: 144.136 | B142: Accepted | C142: NA | D142: Social Energy Limited | E142: SOC6-FFR | F142: DNO connection | G142: DSF: Storage (onsite) | H142: 2022-01-01 | I142: 2022-01-31 | J142: 01.01.22 - 31.01.22 (1 months) | K142: As per FFR framework agreement | L142: 1900 | M142: 2300 | N142: 4 | O142: 1900 | P142: 2300 | Q142: 4 | R142: 1900 | S142: 2300 | T142: 4 | U142: 19.26 | AC142: 0.4 | AD142: 1 | AE142: 1 | AF142: 0.4 | AG142: 1 | AH142: 0.4 | AI142: 1 | AQ142: H for only 30min
A143: 144.137 | B143: Accepted | C143: NA | D143: Social Energy Limited | E143: SOC7-FFR | F143: DNO connection | G143: DSF: Storage (onsite) | H143: 2021-12-31 | I143: 2022-01-31 | J143: 31.12.21 - 31.01.22 (1 months) | K143: As per FFR framework agreement | L143: 2300 | M143: 1500 | N143: 16 | O143: 2300 | P143: 1500 | Q143: 16 | R143: 2300 | S143: 1500 | T143: 16 | U143: 13.03 | AC143: 0.4 | AD143: 1 | AE143: 1 | AF143: 0.4 | AG143: 1 | AH143: 0.4 | AI143: 1 | AQ143: H for only 30min
A144: 144.138 | B144: Accepted | C144: NA | D144: Social Energy Limited | E144: SOC7-FFR | F144: DNO connection | G144: DSF: Storage (onsite) | H144: 2022-01-01 | I144: 2022-01-31 | J144: 01.01.22 - 31.01.22 (1 months) | K144: As per FFR framework agreement | L144: 1500 | M144: 1900 | N144: 4 | O144: 1500 | P144: 1900 | Q144: 4 | R144: 1500 | S144: 1900 | T144: 4 | U144: 28.01 | AC144: 0.4 | AD144: 1 | AE144: 1 | AF144: 0.4 | AG144: 1 | AH144: 0.4 | AI144: 1 | AQ144: H for only 30min
A145: 144.139 | B145: Accepted | C145: NA | D145: Social Energy Limited | E145: SOC7-FFR | F145: DNO connection | G145: DSF: Storage (onsite) | H145: 2022-01-01 | I145: 2022-01-31 | J145: 01.01.22 - 31.01.22 (1 months) | K145: As per FFR framework agreement | L145: 1900 | M145: 2300 | N145: 4 | O145: 1900 | P145: 2300 | Q145: 4 | R145: 1900 | S145: 2300 | T145: 4 | U145: 19.91 | AC145: 0.4 | AD145: 1 | AE145: 1 | AF145: 0.4 | AG145: 1 | AH145: 0.4 | AI145: 1 | AQ145: H for only 30min
A146: 144.14 | B146: Accepted | C146: NA | D146: Social Energy Limited | E146: SOC8-FFR | F146: DNO connection | G146: DSF: Storage (onsite) | H146: 2021-12-31 | I146: 2022-01-31 | J146: 31.12.21 - 31.01.22 (1 months) | K146: As per FFR framework agreement | L146: 2300 | M146: 1500 | N146: 16 | O146: 2300 | P146: 1500 | Q146: 16 | R146: 2300 | S146: 1500 | T146: 16 | U146: 13.18 | AC146: 0.4 | AD146: 1 | AE146: 1 | AF146: 0.4 | AG146: 1 | AH146: 0.4 | AI146: 1 | AQ146: H for only 30min
A147: 144.141 | B147: Accepted | C147: NA | D147: Social Energy Limited | E147: SOC8-FFR | F147: DNO connection | G147: DSF: Storage (onsite) | H147: 2022-01-01 | I147: 2022-01-31 | J147: 01.01.22 - 31.01.22 (1 months) | K147: As per FFR framework agreement | L147: 1500 | M147: 1900 | N147: 4 | O147: 1500 | P147: 1900 | Q147: 4 | R147: 1500 | S147: 1900 | T147: 4 | U147: 28.69 | AC147: 0.4 | AD147: 1 | AE147: 1 | AF147: 0.4 | AG147: 1 | AH147: 0.4 | AI147: 1 | AQ147: H for only 30min
A148: 144.142 | B148: Accepted | C148: NA | D148: Social Energy Limited | E148: SOC8-FFR | F148: DNO connection | G148: DSF: Storage (onsite) | H148: 2022-01-01 | I148: 2022-01-31 | J148: 01.01.22 - 31.01.22 (1 months) | K148: As per FFR framework agreement | L148: 1900 | M148: 2300 | N148: 4 | O148: 1900 | P148: 2300 | Q148: 4 | R148: 1900 | S148: 2300 | T148: 4 | U148: 20.48 | AC148: 0.4 | AD148: 1 | AE148: 1 | AF148: 0.4 | AG148: 1 | AH148: 0.4 | AI148: 1 | AQ148: H for only 30min
A149: 144.143 | B149: Accepted | C149: NA | D149: Social Energy Limited | E149: SOC9-FFR | F149: DNO connection | G149: DSF: Storage (onsite) | H149: 2021-12-31 | I149: 2022-01-31 | J149: 31.12.21 - 31.01.22 (1 months) | K149: As per FFR framework agreement | L149: 2300 | M149: 1500 | N149: 16 | O149: 2300 | P149: 1500 | Q149: 16 | R149: 2300 | S149: 1500 | T149: 16 | U149: 13.42 | AC149: 0.4 | AD149: 1 | AE149: 1 | AF149: 0.4 | AG149: 1 | AH149: 0.4 | AI149: 1 | AQ149: H for only 30min
A150: =A149+0.001 -> 144.144 | B150: Accepted | C150: NA | D150: Social Energy Limited | E150: SOC9-FFR | F150: DNO connection | G150: DSF: Storage (onsite) | H150: 2022-01-01 | I150: 2022-01-31 | J150: 01.01.22 - 31.01.22 (1 months) | K150: As per FFR framework agreement | L150: 1500 | M150: 1900 | N150: 4 | O150: 1500 | P150: 1900 | Q150: 4 | R150: 1500 | S150: 1900 | T150: 4 | U150: 29.36 | AC150: 0.4 | AD150: 1 | AE150: 1 | AF150: 0.4 | AG150: 1 | AH150: 0.4 | AI150: 1 | AQ150: H for only 30min
A151: 144.145 | B151: Accepted | C151: NA | D151: Social Energy Limited | E151: SOC9-FFR | F151: DNO connection | G151: DSF: Storage (onsite) | H151: 2022-01-01 | I151: 2022-01-31 | J151: 01.01.22 - 31.01.22 (1 months) | K151: As per FFR framework agreement | L151: 1900 | M151: 2300 | N151: 4 | O151: 1900 | P151: 2300 | Q151: 4 | R151: 1900 | S151: 2300 | T151: 4 | U151: 21.24 | AC151: 0.4 | AD151: 1 | AE151: 1 | AF151: 0.4 | AG151: 1 | AH151: 0.4 | AI151: 1 | AQ151: H for only 30min
A152: 144.146 | B152: Accepted | C152: NA | D152: Social Energy Limited | E152: SOC10-FFR | F152: DNO connection | G152: DSF: Storage (onsite) | H152: 2021-12-31 | I152: 2022-01-31 | J152: 31.12.21 - 31.01.22 (1 months) | K152: As per FFR framework agreement | L152: 2300 | M152: 1500 | N152: 16 | O152: 2300 | P152: 1500 | Q152: 16 | R152: 2300 | S152: 1500 | T152: 16 | U152: 13.59 | AC152: 0.4 | AD152: 1 | AE152: 1 | AF152: 0.4 | AG152: 1 | AH152: 0.4 | AI152: 1 | AQ152: H for only 30min
A153: 144.147 | B153: Accepted | C153: NA | D153: Social Energy Limited | E153: SOC10-FFR | F153: DNO connection | G153: DSF: Storage (onsite) | H153: 2022-01-01 | I153: 2022-01-31 | J153: 01.01.22 - 31.01.22 (1 months) | K153: As per FFR framework agreement | L153: 1500 | M153: 1900 | N153: 4 | O153: 1500 | P153: 1900 | Q153: 4 | R153: 1500 | S153: 1900 | T153: 4 | U153: 29.98 | AC153: 0.4 | AD153: 1 | AE153: 1 | AF153: 0.4 | AG153: 1 | AH153: 0.4 | AI153: 1 | AQ153: H for only 30min
A154: 144.148 | B154: Accepted | C154: NA | D154: Social Energy Limited | E154: SOC10-FFR | F154: DNO connection | G154: DSF: Storage (onsite) | H154: 2022-01-01 | I154: 2022-01-31 | J154: 01.01.22 - 31.01.22 (1 months) | K154: As per FFR framework agreement | L154: 1900 | M154: 2300 | N154: 4 | O154: 1900 | P154: 2300 | Q154: 4 | R154: 1900 | S154: 2300 | T154: 4 | U154: 21.97 | AC154: 0.4 | AD154: 1 | AE154: 1 | AF154: 0.4 | AG154: 1 | AH154: 0.4 | AI154: 1 | AQ154: H for only 30min
A155: 144.149 | B155: Accepted | C155: NA | D155: Statkraft Markets GmbH | E155: SKFT-1 | F155: DNO Connection | G155: DSF: Storage (for export) | H155: 2021-12-31 | I155: 2022-01-31 | J155: 31.12.21 - 31.01.22 (1 months) | K155: As per FFR framework agreement | L155: 2300 | M155: 700 | N155: 8 | O155: 2300 | P155: 700 | Q155: 8 | R155: 2300 | S155: 700 | T155: 8 | U155: 108 | AC155: 3.6 | AD155: 9 | AE155: 9 | AF155: 3.6 | AG155: 9 | AH155: 3.6 | AI155: 9 | AP155: YO61
A156: 144.15 | B156: Rejected | C156: 2 | D156: Statkraft Markets GmbH | E156: AG-JSTK02 | F156: DNO Connection | G156: DSF: Storage (for export) | H156: 2021-12-31 | I156: 2022-01-31 | J156: 31.12.21 - 31.01.22 (1 months) | K156: As per FFR framework agreement | L156: 2300 | M156: 700 | N156: 8 | O156: 2300 | P156: 700 | Q156: 8 | R156: 2300 | S156: 700 | T156: 8 | U156: 73.45 | AC156: 2 | AD156: 5 | AE156: 5 | AF156: 2 | AG156: 5 | AH156: 2 | AI156: 5 | AP156: RH4 3
A157: 144.151 | B157: Rejected | C157: 2 | D157: Statkraft Markets GmbH | E157: AG-JSTK02 | F157: DNO Connection | G157: DSF: Storage (for export) | H157: 2022-01-01 | I157: 2022-01-31 | J157: 01.01.22 - 31.01.22 (1 months) | K157: As per FFR framework agreement | L157: 700 | M157: 1500 | N157: =IF(L157>M157, (2400-L157+M157)/100, IF(AND(L157="",M157="",L157=M157), "", IF(L157=M157,24,(M157-L157)/100))) -> 8 | O157: 700 | P157: 1500 | Q157: =IF(O157>P157, (2400-O157+P157)/100, IF(AND(O157="",P157="",O157=P157), "", IF(O157=P157,24,(P157-O157)/100))) -> 8 | R157: 700 | S157: 1500 | T157: =IF(R157>S157, (2400-R157+S157)/100, IF(AND(R157="",S157="",R157=S157), "", IF(R157=S157,24,(S157-R157)/100))) -> 8 | U157: 74.6 | AC157: 2 | AD157: 5 | AE157: 5 | AF157: 2 | AG157: 5 | AH157: 2 | AI157: 5 | AP157: RH4 3
A158: =A157+0.001 -> 144.152 | B158: Accepted | C158: NA | D158: Statkraft Markets GmbH | E158: AG-JSTK02 | F158: DNO Connection | G158: DSF: Storage (for export) | H158: 2022-01-01 | I158: 2022-01-31 | J158: 01.01.22 - 31.01.22 (1 months) | K158: As per FFR framework agreement | L158: 1500 | M158: 2300 | N158: 8 | O158: 1500 | P158: 2300 | Q158: 8 | R158: 1500 | S158: 2300 | T158: 8 | U158: 174.45 | AC158: 2 | AD158: 5 | AE158: 5 | AF158: 2 | AG158: 5 | AH158: 2 | AI158: 5 | AP158: RH4 3
A159: 144.153 | B159: Rejected | C159: 2 | D159: Statkraft Markets GmbH | E159: AG-MSTK01 | F159: DNO Connection | G159: DSF: Storage (for export) | H159: 2021-12-31 | I159: 2022-01-31 | J159: 31.12.21 - 31.01.22 (1 months) | K159: As per FFR framework agreement | L159: 2300 | M159: 700 | N159: 8 | O159: 2300 | P159: 700 | Q159: 8 | R159: 2300 | S159: 700 | T159: 8 | U159: 638 | AC159: 17.6 | AD159: 44 | AE159: 44 | AF159: 17.6 | AG159: 44 | AH159: 17.6 | AI159: 44 | AP159: HU16
A160: 144.154 | B160: Rejected | C160: 2 | D160: Statkraft Markets GmbH | E160: AG-MSTK01 | F160: DNO Connection | G160: DSF: Storage (for export) | H160: 2022-01-01 | I160: 2022-01-31 | J160: 01.01.22 - 31.01.22 (1 months) | K160: As per FFR framework agreement | L160: 700 | M160: 1500 | N160: =IF(L160>M160, (2400-L160+M160)/100, IF(AND(L160="",M160="",L160=M160), "", IF(L160=M160,24,(M160-L160)/100))) -> 8 | O160: 700 | P160: 1500 | Q160: =IF(O160>P160, (2400-O160+P160)/100, IF(AND(O160="",P160="",O160=P160), "", IF(O160=P160,24,(P160-O160)/100))) -> 8 | R160: 700 | S160: 1500 | T160: =IF(R160>S160, (2400-R160+S160)/100, IF(AND(R160="",S160="",R160=S160), "", IF(R160=S160,24,(S160-R160)/100))) -> 8 | U160: 571.56 | AC160: 17.6 | AD160: 44 | AE160: 44 | AF160: 17.6 | AG160: 44 | AH160: 17.6 | AI160: 44 | AP160: HU16
A161: 144.155 | B161: Accepted | C161: NA | D161: Statkraft Markets GmbH | E161: AG-MSTK01 | F161: DNO Connection | G161: DSF: Storage (for export) | H161: 2022-01-01 | I161: 2022-01-31 | J161: 01.01.22 - 31.01.22 (1 months) | K161: As per FFR framework agreement | L161: 1500 | M161: 2300 | N161: 8 | O161: 1500 | P161: 2300 | Q161: 8 | R161: 1500 | S161: 2300 | T161: 8 | U161: 1399.6 | AC161: 16 | AD161: 40 | AE161: 40 | AF161: 16 | AG161: 40 | AH161: 16 | AI161: 40 | AP161: HU16
A162: 144.156 | B162: Accepted | C162: NA | D162: Statkraft Markets GmbH | E162: AG-ASTK05 | F162: DNO Connection | G162: DSF: Storage (for export) | H162: 2021-12-31 | I162: 2022-01-31 | J162: 31.12.21 - 31.01.22 (1 months) | K162: As per FFR framework agreement | L162: 2300 | M162: 700 | N162: 8 | O162: 2300 | P162: 700 | Q162: 8 | R162: 2300 | S162: 700 | T162: 8 | U162: 571.56 | AC162: 17.6 | AD162: 44 | AE162: 44 | AF162: 17.6 | AG162: 44 | AH162: 17.6 | AI162: 44 | AP162: SG9 0
A163: 144.157 | B163: Rejected | C163: 2 | D163: Statkraft Markets GmbH | E163: AG-ASTK05 | F163: DNO Connection | G163: DSF: Storage (for export) | H163: 2022-01-01 | I163: 2022-01-31 | J163: 01.01.22 - 31.01.22 (1 months) | K163: As per FFR framework agreement | L163: 700 | M163: 1500 | N163: =IF(L163>M163, (2400-L163+M163)/100, IF(AND(L163="",M163="",L163=M163), "", IF(L163=M163,24,(M163-L163)/100))) -> 8 | O163: 700 | P163: 1500 | Q163: =IF(O163>P163, (2400-O163+P163)/100, IF(AND(O163="",P163="",O163=P163), "", IF(O163=P163,24,(P163-O163)/100))) -> 8 | R163: 700 | S163: 1500 | T163: =IF(R163>S163, (2400-R163+S163)/100, IF(AND(R163="",S163="",R163=S163), "", IF(R163=S163,24,(S163-R163)/100))) -> 8 | U163: 549.56 | AC163: 17.6 | AD163: 44 | AE163: 44 | AF163: 17.6 | AG163: 44 | AH163: 17.6 | AI163: 44 | AP163: SG9 0
A164: 144.158 | B164: Accepted | C164: NA | D164: Statkraft Markets GmbH | E164: AG-ASTK05 | F164: DNO Connection | G164: DSF: Storage (for export) | H164: 2022-01-01 | I164: 2022-01-31 | J164: 01.01.22 - 31.01.22 (1 months) | K164: As per FFR framework agreement | L164: 1500 | M164: 2300 | N164: 8 | O164: 1500 | P164: 2300 | Q164: 8 | R164: 1500 | S164: 2300 | T164: 8 | U164: 1199.6 | AC164: 16 | AD164: 40 | AE164: 40 | AF164: 16 | AG164: 40 | AH164: 16 | AI164: 40 | AP164: SG9 0
A165: 144.159 | B165: Rejected | C165: 4 | D165: UK Power Reserve Ltd | E165: AFFR1 | F165: DNO connection | G165: DSF: Storage (for export) | H165: 2021-12-31 | I165: 2022-01-31 | J165: 31.12.21 - 31.01.22 (1 months) | K165: As per FFR framework agreement | L165: 2300 | M165: 2300 | N165: 24 | O165: 2300 | P165: 2300 | Q165: 24 | R165: 2300 | S165: 2300 | T165: 24 | U165: 565.6 | AC165: 8 | AD165: 20 | AE165: 20 | AF165: 8 | AG165: 20 | AH165: 8 | AI165: 20 | AL165: A | AM165: Exclusive with B&C | AP165: LE14
A166: 144.16 | B166: Rejected | C166: 2 | D166: UK Power Reserve Ltd | E166: AFFR1 | F166: DNO connection | G166: DSF: Storage (for export) | H166: 2022-01-01 | I166: 2022-01-31 | J166: 01.01.22 - 31.01.22 (1 months) | K166: As per FFR framework agreement | L166: 700 | M166: 2300 | N166: 16 | O166: 700 | P166: 2300 | Q166: 16 | R166: 700 | S166: 2300 | T166: 16 | U166: 687.2 | AC166: 8 | AD166: 20 | AE166: 20 | AF166: 8 | AG166: 20 | AH166: 8 | AI166: 20 | AL166: B | AM166: Exclusive with A&C | AP166: LE14
A167: 144.161 | B167: Rejected | C167: 2 | D167: UK Power Reserve Ltd | E167: AFFR1 | F167: DNO connection | G167: DSF: Storage (for export) | H167: 2022-01-01 | I167: 2022-01-31 | J167: 01.01.22 - 31.01.22 (1 months) | K167: As per FFR framework agreement | L167: 1500 | M167: 2300 | N167: 8 | O167: 1500 | P167: 2300 | Q167: 8 | R167: 1500 | S167: 2300 | T167: 8 | U167: 1048 | AC167: 8 | AD167: 20 | AE167: 20 | AF167: 8 | AG167: 20 | AH167: 8 | AI167: 20 | AL167: C | AM167: Exclusive with A&B | AP167: LE14
A168: 144.162 | B168: Rejected | C168: 2 | D168: UK Power Reserve Ltd | E168: AFFR2 | F168: DNO connection | G168: DSF: Storage (for export) | H168: 2021-12-31 | I168: 2022-01-31 | J168: 31.12.21 - 31.01.22 (1 months) | K168: As per FFR framework agreement | L168: 2300 | M168: 2300 | N168: 24 | O168: 2300 | P168: 2300 | Q168: 24 | R168: 2300 | S168: 2300 | T168: 24 | U168: 625.6 | AC168: 8 | AD168: 20 | AE168: 20 | AF168: 8 | AG168: 20 | AH168: 8 | AI168: 20 | AL168: D | AM168: Exclusive with E&F | AP168: CH65
A169: 144.163 | B169: Rejected | C169: 2 | D169: UK Power Reserve Ltd | E169: AFFR2 | F169: DNO connection | G169: DSF: Storage (for export) | H169: 2022-01-01 | I169: 2022-01-31 | J169: 01.01.22 - 31.01.22 (1 months) | K169: As per FFR framework agreement | L169: 700 | M169: 2300 | N169: 16 | O169: 700 | P169: 2300 | Q169: 16 | R169: 700 | S169: 2300 | T169: 16 | U169: 827.2 | AC169: 8 | AD169: 20 | AE169: 20 | AF169: 8 | AG169: 20 | AH169: 8 | AI169: 20 | AL169: E | AM169: Exclusive with D&F | AP169: CH65
A170: 144.164 | B170: Rejected | C170: 2 | D170: UK Power Reserve Ltd | E170: AFFR2 | F170: DNO connection | G170: DSF: Storage (for export) | H170: 2022-01-01 | I170: 2022-01-31 | J170: 01.01.22 - 31.01.22 (1 months) | K170: As per FFR framework agreement | L170: 1500 | M170: 2300 | N170: 8 | O170: 1500 | P170: 2300 | Q170: 8 | R170: 1500 | S170: 2300 | T170: 8 | U170: 1188 | AC170: 8 | AD170: 20 | AE170: 20 | AF170: 8 | AG170: 20 | AH170: 8 | AI170: 20 | AL170: F | AM170: Exclusive with D&E | AP170: CH65
A171: 144.165 | B171: Rejected | C171: 2 | D171: UK Power Reserve Ltd | E171: AFFR3 | F171: DNO connection | G171: DSF: Storage (for export) | H171: 2021-12-31 | I171: 2022-01-31 | J171: 31.12.21 - 31.01.22 (1 months) | K171: As per FFR framework agreement | L171: 2300 | M171: 2300 | N171: 24 | O171: 2300 | P171: 2300 | Q171: 24 | R171: 2300 | S171: 2300 | T171: 24 | U171: 725.6 | AC171: 8 | AD171: 20 | AE171: 20 | AF171: 8 | AG171: 20 | AH171: 8 | AI171: 20 | AL171: G | AM171: Exclusive with H&I | AP171: WA7
A172: 144.166 | B172: Rejected | C172: 2 | D172: UK Power Reserve Ltd | E172: AFFR3 | F172: DNO connection | G172: DSF: Storage (for export) | H172: 2022-01-01 | I172: 2022-01-31 | J172: 01.01.22 - 31.01.22 (1 months) | K172: As per FFR framework agreement | L172: 700 | M172: 2300 | N172: 16 | O172: 700 | P172: 2300 | Q172: 16 | R172: 700 | S172: 2300 | T172: 16 | U172: 787.2 | AC172: 8 | AD172: 20 | AE172: 20 | AF172: 8 | AG172: 20 | AH172: 8 | AI172: 20 | AL172: H | AM172: Exclusive with G&I | AP172: WA7
A173: 144.167 | B173: Rejected | C173: 2 | D173: UK Power Reserve Ltd | E173: AFFR3 | F173: DNO connection | G173: DSF: Storage (for export) | H173: 2022-01-01 | I173: 2022-01-31 | J173: 01.01.22 - 31.01.22 (1 months) | K173: As per FFR framework agreement | L173: 1500 | M173: 2300 | N173: 8 | O173: 1500 | P173: 2300 | Q173: 8 | R173: 1500 | S173: 2300 | T173: 8 | U173: 1090 | AC173: 8 | AD173: 20 | AE173: 20 | AF173: 8 | AG173: 20 | AH173: 8 | AI173: 20 | AL173: I | AM173: Exclusive with G&H | AP173: WA7
A174: 144.168 | B174: Rejected | C174: 2 | D174: UK Power Reserve Ltd | E174: AFFR4 | F174: DNO connection | G174: DSF: Storage (for export) | H174: 2021-12-31 | I174: 2022-01-31 | J174: 31.12.21 - 31.01.22 (1 months) | K174: As per FFR framework agreement | L174: 2300 | M174: 2300 | N174: 24 | O174: 2300 | P174: 2300 | Q174: 24 | R174: 2300 | S174: 2300 | T174: 24 | U174: 412.8 | AC174: 4 | AD174: 10 | AE174: 10 | AF174: 4 | AG174: 10 | AH174: 10 | AI174: 10 | AL174: J | AM174: Exclusive with K&L | AP174: PE21
A175: 144.169 | B175: Rejected | C175: 2 | D175: UK Power Reserve Ltd | E175: AFFR4 | F175: DNO connection | G175: DSF: Storage (for export) | H175: 2022-01-01 | I175: 2022-01-31 | J175: 01.01.22 - 31.01.22 (1 months) | K175: As per FFR framework agreement | L175: 700 | M175: 2300 | N175: 16 | O175: 700 | P175: 2300 | Q175: 16 | R175: 700 | S175: 2300 | T175: 16 | U175: 423.6 | AC175: 4 | AD175: 10 | AE175: 10 | AF175: 4 | AG175: 10 | AH175: 10 | AI175: 10 | AL175: K | AM175: Exclusive with J&L | AP175: PE21
A176: 144.17 | B176: Rejected | C176: 2 | D176: UK Power Reserve Ltd | E176: AFFR4 | F176: DNO connection | G176: DSF: Storage (for export) | H176: 2022-01-01 | I176: 2022-01-31 | J176: 01.01.22 - 31.01.22 (1 months) | K176: As per FFR framework agreement | L176: 1500 | M176: 2300 | N176: 8 | O176: 1500 | P176: 2300 | Q176: 8 | R176: 1500 | S176: 2300 | T176: 8 | U176: 652.5 | AC176: 4 | AD176: 10 | AE176: 10 | AF176: 4 | AG176: 10 | AH176: 10 | AI176: 10 | AL176: L | AM176: Exclusive with J&K | AP176: PE21
A177: 144.171 | B177: Rejected | C177: 2 | D177: Upside Energy | E177: UPEN-3 | F177: DNO connection | G177: DSF: Storage (onsite) | H177: 2022-01-01 | I177: 2022-01-31 | J177: 01.01.22 - 31.01.22 (1 months) | L177: 2300 | M177: 300 | N177: 4 | Q177: =IF(O177>P177, (2400-O177+P177)/100, IF(AND(O177="",P177="",O177=P177), "", IF(O177=P177,24,(P177-O177)/100))) ->  | T177: =IF(R177>S177, (2400-R177+S177)/100, IF(AND(R177="",S177="",R177=S177), "", IF(R177=S177,24,(S177-R177)/100))) ->  | U177: 13.35 | AC177: 0.4 | AD177: 1 | AE177: 1 | AF177: 0.4 | AG177: 1 | AH177: 0.4 | AI177: 1 | AP177: EH48
A178: 144.172 | B178: Accepted | C178: NA | D178: Upside Energy | E178: UPEN-3 | F178: DNO connection | G178: DSF: Storage (onsite) | H178: 2021-12-31 | I178: 2022-01-31 | J178: 31.12.21 - 31.01.22 (1 months) | O178: 2300 | P178: 300 | Q178: 4 | R178: 2300 | S178: 300 | T178: 4 | U178: 14.4 | AC178: 0.4 | AD178: 1 | AE178: 1 | AF178: 0.4 | AG178: 1 | AH178: 0.4 | AI178: 1 | AL178: A | AP178: EH48
A179: 144.173 | B179: Accepted | C179: NA | D179: Upside Energy | E179: UPEN-3 | F179: DNO connection | G179: DSF: Storage (onsite) | H179: 2022-01-01 | I179: 2022-01-31 | J179: 01.01.22 - 31.01.22 (1 months) | O179: 1900 | P179: 2300 | Q179: 4 | R179: 1900 | S179: 2300 | T179: =IF(R179>S179, (2400-R179+S179)/100, IF(AND(R179="",S179="",R179=S179), "", IF(R179=S179,24,(S179-R179)/100))) -> 4 | U179: 14.4 | AC179: 0.4 | AD179: 1 | AE179: 1 | AF179: 0.4 | AG179: 1 | AH179: 0.4 | AI179: 1 | AL179: A | AP179: EH48
A180: 144.174 | B180: Rejected | C180: 2 | D180: Upside Energy | E180: UPEN-3 | F180: DNO connection | G180: DSF: Storage (onsite) | H180: 2022-01-01 | I180: 2022-01-31 | J180: 01.01.22 - 31.01.22 (1 months) | L180: 700 | M180: 1500 | N180: 8 | O180: 700 | P180: 1500 | Q180: 8 | R180: 700 | S180: 1500 | T180: 8 | U180: 13.25 | AC180: 0.4 | AD180: 1 | AE180: 1 | AF180: 0.4 | AG180: 1 | AH180: 0.4 | AI180: 1 | AP180: EH48
A181: 144.175 | B181: Accepted | C181: NA | D181: Upside Energy | E181: UPEN-2 | F181: DNO connection | G181: DSF: Storage (onsite) | H181: 2021-12-31 | I181: 2022-01-31 | J181: 31.12.21 - 31.01.22 (1 months) | L181: 2300 | M181: 1500 | N181: 16 | O181: 2300 | P181: 1500 | Q181: 16 | R181: 2300 | S181: 1500 | T181: 16 | U181: 12.8 | AC181: 0.4 | AD181: 1 | AE181: 1 | AF181: 0.4 | AG181: 1 | AH181: 0.4 | AI181: 1 | AP181: NR12
A182: 144.176 | B182: Accepted | C182: NA | D182: Upside Energy | E182: KFLX-01 | F182: DNO connection | G182: DSF: Storage (onsite) | H182: 2021-12-31 | I182: 2022-01-31 | J182: 31.12.21 - 31.01.22 (1 months) | L182: 2300 | M182: 700 | N182: 8 | O182: 2300 | P182: 700 | Q182: 8 | R182: 2300 | S182: 700 | T182: 8 | U182: 25 | AC182: 0.8 | AD182: 2 | AE182: 2 | AF182: 0.8 | AG182: 2 | AH182: 0.8 | AI182: 2 | AP182: N7 7
A183: 144.177 | B183: Rejected | C183: 2 | D183: Upside Energy | E183: KFLX-01 | F183: DNO connection | G183: DSF: Storage (onsite) | H183: 2022-01-01 | I183: 2022-01-31 | J183: 01.01.22 - 31.01.22 (1 months) | L183: 700 | M183: 2300 | N183: 16 | O183: 700 | P183: 2300 | Q183: 16 | R183: 700 | S183: 2300 | T183: 16 | U183: 114 | AC183: 0.8 | AD183: 2 | AE183: 2 | AF183: 0.8 | AG183: 2 | AH183: 0.8 | AI183: 2 | AP183: N7 7
A184: 144.178 | B184: Rejected | C184: 2 | D184: BESS HoldCo 3 Ltd | E184: DBESSA-33 | F184: DNO connection | G184: Battery | H184: 2021-12-31 | I184: 2022-01-31 | J184: 31.12.21 - 31.01.22 (1 months) | K184: As per FFR framework agreement | L184: 2300 | M184: 700 | N184: 8 | O184: 2300 | P184: 700 | Q184: 8 | R184: 2300 | S184: 700 | T184: 8 | U184: 225 | AC184: 3.6 | AD184: 9 | AE184: 9 | AF184: 3.6 | AG184: 9 | AH184: 3.6 | AI184: 9 | AM184: A | AP184: ME20
A185: 144.179 | B185: Accepted | C185: NA | D185: BESS HoldCo 3 Ltd | E185: DBESSA-33 | F185: DNO connection | G185: Battery | H185: 2022-01-01 | I185: 2022-01-31 | J185: 01.01.22 - 31.01.22 (1 months) | K185: As per FFR framework agreement | L185: 1900 | M185: 2300 | N185: 4 | O185: 1500 | P185: 2300 | Q185: 8 | R185: 1500 | S185: 2300 | T185: 8 | U185: 270 | AC185: 3.6 | AD185: 9 | AE185: 9 | AF185: 3.6 | AG185: 9 | AH185: 3.6 | AI185: 9 | AM185: B | AP185: ME20
A186: 144.18 | B186: Rejected | C186: 2 | D186: BESS HoldCo 3 Ltd | E186: DBESSA-33 | F186: DNO connection | G186: Battery | H186: 2022-01-01 | I186: 2022-01-31 | J186: 01.01.22 - 31.01.22 (1 months) | K186: As per FFR framework agreement | L186: 700 | M186: 1500 | N186: 8 | O186: 700 | P186: 1500 | Q186: 8 | R186: 700 | S186: 1500 | T186: 8 | U186: 126 | AC186: 3.6 | AD186: 9 | AE186: 9 | AF186: 3.6 | AG186: 9 | AH186: 3.6 | AI186: 9 | AM186: C | AP186: ME20
A187: 144.181 | B187: Rejected | C187: 2 | D187: BESS HoldCo 3 Ltd | E187: DBESSC-33 | F187: DNO connection | G187: Battery | H187: 2021-12-31 | I187: 2022-01-31 | J187: 31.12.21 - 31.01.22 (1 months) | K187: As per FFR framework agreement | L187: 2300 | M187: 700 | N187: 8 | O187: 2300 | P187: 700 | Q187: 8 | R187: 2300 | S187: 700 | T187: 8 | U187: 240 | AC187: 4 | AD187: 10 | AE187: 10 | AF187: 4 | AG187: 10 | AH187: 4 | AI187: 10 | AM187: D | AP187: ME20
A188: 144.182 | B188: Rejected | C188: 2 | D188: BESS HoldCo 3 Ltd | E188: DBESSC-33 | F188: DNO connection | G188: Battery | H188: 2022-01-01 | I188: 2022-01-31 | J188: 01.01.22 - 31.01.22 (1 months) | K188: As per FFR framework agreement | L188: 700 | M188: 1500 | N188: 8 | O188: 700 | P188: 1500 | Q188: 8 | R188: 700 | S188: 1500 | T188: 8 | U188: 170 | AC188: 4 | AD188: 10 | AE188: 10 | AF188: 4 | AG188: 10 | AH188: 4 | AI188: 10 | AM188: F | AP188: ME20
A189: 144.183 | B189: Accepted | C189: NA | D189: BESS HoldCo 3 Ltd | E189: DBESSC-33 | F189: DNO connection | G189: Battery | H189: 2022-01-01 | I189: 2022-01-31 | J189: 01.01.22 - 31.01.22 (1 months) | K189: As per FFR framework agreement | L189: 1500 | M189: 2300 | N189: 8 | O189: 1500 | P189: 2300 | Q189: 8 | R189: 1500 | S189: 2300 | T189: 8 | U189: 400 | AC189: 4 | AD189: 10 | AE189: 10 | AF189: 4 | AG189: 10 | AH189: 4 | AI189: 10 | AM189: E | AP189: ME20
A190: 144.184 | B190: Rejected | C190: 2 | D190: BESS HoldCo 3 Ltd | E190: DBESSF-33 | F190: DNO connection | G190: Battery | H190: 2021-12-31 | I190: 2022-01-31 | J190: 31.12.21 - 31.01.22 (1 months) | K190: As per FFR framework agreement | L190: 2300 | M190: 700 | N190: 8 | O190: 2300 | P190: 700 | Q190: 8 | R190: 2300 | S190: 700 | T190: 8 | U190: 230 | AC190: 4 | AD190: 10 | AE190: 10 | AF190: 4 | AG190: 10 | AH190: 4 | AI190: 10 | AM190: G | AP190: ME20
A191: 144.185 | B191: Rejected | C191: 2 | D191: BESS HoldCo 3 Ltd | E191: DBESSF-33 | F191: DNO connection | G191: Battery | H191: 2022-01-01 | I191: 2022-01-31 | J191: 01.01.22 - 31.01.22 (1 months) | K191: As per FFR framework agreement | L191: 700 | M191: 1500 | N191: 8 | O191: 700 | P191: 1500 | Q191: 8 | R191: 700 | S191: 1500 | T191: 8 | U191: 160 | AC191: 4 | AD191: 10 | AE191: 10 | AF191: 4 | AG191: 10 | AH191: 4 | AI191: 10 | AM191: H | AP191: ME20
A192: 144.186 | B192: Accepted | C192: NA | D192: BESS HoldCo 3 Ltd | E192: DBESSF-33 | F192: DNO connection | G192: Battery | H192: 2022-01-01 | I192: 2022-01-31 | J192: 01.01.22 - 31.01.22 (1 months) | K192: As per FFR framework agreement | L192: 1500 | M192: 2300 | N192: 8 | O192: 1500 | P192: 2300 | Q192: 8 | R192: 1500 | S192: 2300 | T192: 8 | U192: 390 | AC192: 4 | AD192: 10 | AE192: 10 | AF192: 4 | AG192: 10 | AH192: 4 | AI192: 10 | AM192: I | AP192: ME20
A193: 144.187 | B193: Rejected | C193: 2 | D193: BESS HoldCo 3 Ltd | E193: DBESSH-33 | F193: DNO connection | G193: Battery | H193: 2021-12-31 | I193: 2022-01-31 | J193: =IFERROR(TEXT(H193,"DD.MM.YY")&" - "&TEXT(I193,"DD.MM.YY")&" ("&DATEDIF(H193,I193+1,"m")&" months)","Tender End Date is Before Start Date") -> 31.12.21 - 31.01.22 (1 months) | K193: As per FFR framework agreement | L193: 2300 | M193: 700 | N193: 8 | O193: 2300 | P193: 700 | Q193: 8 | R193: 2300 | S193: 700 | T193: 8 | U193: 126 | AC193: 3.6 | AD193: 9 | AE193: 9 | AF193: 3.6 | AG193: 9 | AH193: 3.6 | AI193: 9 | AM193: J | AP193: BN44
A194: 144.188 | B194: Rejected | C194: 2 | D194: BESS HoldCo 3 Ltd | E194: DBESSH-33 | F194: DNO connection | G194: Battery | H194: 2022-01-01 | I194: 2022-01-31 | J194: 01.01.22 - 31.01.22 (1 months) | K194: As per FFR framework agreement | L194: 700 | M194: 1500 | N194: 8 | O194: 700 | P194: 1500 | Q194: 8 | R194: 700 | S194: 1500 | T194: 8 | U194: 126 | AC194: 3.6 | AD194: 9 | AE194: 9 | AF194: 3.6 | AG194: 9 | AH194: 3.6 | AI194: 9 | AM194: K | AP194: BN44
A195: 144.189 | B195: Accepted | C195: NA | D195: BESS HoldCo 3 Ltd | E195: DBESSH-33 | F195: DNO connection | G195: Battery | H195: 2022-01-01 | I195: 2022-01-31 | J195: 01.01.22 - 31.01.22 (1 months) | K195: As per FFR framework agreement | L195: 1500 | M195: 2300 | N195: 8 | O195: 1500 | P195: 2300 | Q195: 8 | R195: 1500 | S195: 2300 | T195: 8 | U195: 225 | AC195: 3.6 | AD195: 9 | AE195: 9 | AF195: 3.6 | AG195: 9 | AH195: 3.6 | AI195: 9 | AM195: L | AP195: BN44
A196: 144.19 | B196: Rejected | C196: 2 | D196: BESS HoldCo 3 Ltd | E196: DBESSE-33 | F196: DNO connection | G196: Battery | H196: 2021-12-31 | I196: 2022-01-31 | J196: 31.12.21 - 31.01.22 (1 months) | K196: As per FFR framework agreement | L196: 2300 | M196: 700 | N196: 8 | O196: 2300 | P196: 700 | Q196: 8 | R196: 2300 | S196: 700 | T196: 8 | U196: 140 | AC196: 4 | AD196: 10 | AE196: 10 | AF196: 4 | AG196: 10 | AH196: 4 | AI196: 10 | AM196: M | AP196: CO10
A197: 144.191 | B197: Rejected | C197: 2 | D197: BESS HoldCo 3 Ltd | E197: DBESSE-33 | F197: DNO connection | G197: Battery | H197: 2022-01-01 | I197: 2022-01-31 | J197: 01.01.22 - 31.01.22 (1 months) | K197: As per FFR framework agreement | L197: 700 | M197: 1500 | N197: 8 | O197: 700 | P197: 1500 | Q197: 8 | R197: 700 | S197: 1500 | T197: 8 | U197: 140 | AC197: 4 | AD197: 10 | AE197: 10 | AF197: 4 | AG197: 10 | AH197: 4 | AI197: 10 | AM197: N | AP197: CO10
A198: 144.192 | B198: Accepted | C198: NA | D198: BESS HoldCo 3 Ltd | E198: DBESSE-33 | F198: DNO connection | G198: Battery | H198: 2022-01-01 | I198: 2022-01-31 | J198: 01.01.22 - 31.01.22 (1 months) | K198: As per FFR framework agreement | L198: 1500 | M198: 2300 | N198: 8 | O198: 1500 | P198: 2300 | Q198: 8 | R198: 1500 | S198: 2300 | T198: 8 | U198: 300 | AC198: 4 | AD198: 10 | AE198: 10 | AF198: 4 | AG198: 10 | AH198: 4 | AI198: 10 | AM198: O | AP198: CO10
A199: 144.193 | B199: Rejected | C199: 2 | D199: BESS HoldCo 3 Ltd | E199: DBESSG-33 | F199: DNO connection | G199: Battery | H199: 2021-12-31 | I199: 2022-01-31 | J199: 31.12.21 - 31.01.22 (1 months) | K199: As per FFR framework agreement | L199: 2300 | M199: 700 | N199: 8 | O199: 2300 | P199: 700 | Q199: 8 | R199: 2300 | S199: 700 | T199: 8 | U199: 140 | AC199: 4 | AD199: 10 | AE199: 10 | AF199: 4 | AG199: 10 | AH199: 4 | AI199: 10 | AM199: P | AP199: CO10
A200: =A199+0.001 -> 144.194 | B200: Rejected | C200: 2 | D200: BESS HoldCo 3 Ltd | E200: DBESSG-33 | F200: DNO connection | G200: Battery | H200: 2022-01-01 | I200: 2022-01-31 | J200: 01.01.22 - 31.01.22 (1 months) | K200: As per FFR framework agreement | L200: 700 | M200: 1500 | N200: 8 | O200: 700 | P200: 1500 | Q200: 8 | R200: 700 | S200: 1500 | T200: 8 | U200: 140 | AC200: 4 | AD200: 10 | AE200: 10 | AF200: 4 | AG200: 10 | AH200: 4 | AI200: 10 | AM200: Q | AP200: CO10
... 55 more rows
